{"text_format":"1","workbook":"xlsx","n_sheets":11,"sheets":["使用上の注意点","環境","魚類","集約","評価式作成","評価用","環境調査_記録用紙","魚類調査_記録用紙","練習用","環境調査_記録用紙 (記入例)","魚類調査_記録用紙 (記入例)"],"not_rendered":{"charts":5,"images":14,"macros":1,"external_links":0,"defined_names":74,"comments":7,"pivot_tables":0},"unopened":[],"bounds":{"document_bytes":16777216,"sheet_cells":100000,"rows_first":2000,"rows_last":500,"rows_between":2000,"halvings":0,"cell_chars":16384,"cell_head_chars":4096},"cells_cut":0,"cells_raw":0,"read":"whole","date_system":"1900"}

{"sheet":"使用上の注意点","index":0,"n_rows":5,"n_cols":2,"rows_kept":5,"cut":false,"hidden":false,"merged":[]}
["使用上の注意点\n\n免責事項 \n１　国立研究開発法人農業・食品産業技術総合研究機構 （以下、「農研機構」と記します。）は、本プログラムに関して不具合やエラーや障害が生じないことを一切保証いたしません。 \n２　農研機構は、本プログラム及び本プログラムのダウンロードに起因してご使用者に直接または間接的損害が生じても、いかなる責任をも負わず、一切の損害賠償を行わないものとします。 \n３　農研機構は、本プログラムに不具合、不備等があっても、程度の如何にかかわらず訂正、修補する義務を負わないものとします。 \n\n著作権その他の権利 \n１　本プログラムの著作権その他一切の権利は、農研機構に帰属します。 \n２　本プログラムを無断で複製、転載、改変などに類する行為と無断で解析（逆コンパイル、逆アセンブル、リバースエンジニアリング等）することを禁止します。 \n３　本プログラムを販売、貸与、再使用許諾、営業使用することなどは、いずれもできないものとします。 \n４　事前の告知なしに本プログラムの変更、又は配布を中止する場合があります。\n５　本プログラムを用いて得られた計算結果を使用して、学術雑誌等への論文等発表する場合は、論文等の中に本プログラムを使用したことの記載をお願いします。\n","y"]
[]
[]
[]
["メモ機能による補足説明について\n各シートでは、メモ機能により補足説明しています。本セルのように右上角に赤い三角形のあるセルでは、このセルにポインターを当てた時にメモが表示されます。\n※赤い三角形が表示されていない場合、または常にメモが表示される場合には、以下の手順にしたがって設定を変更してください。\n\n（設定変更手順）\n①本画面の左上にある「ファイル」をクリック。\n②「オプション」をクリック。「Excelのオプション」画面が立ち上がります。\n③画面左側の「詳細設定」をクリック。画面右側が切り替わります。\n④画面右側の下の方にある「表示」の「コメントのあるセルに対して表示：」について、「インジケーターのみ。ただしポイント時にコメントを表示（I）」を選択。\n⑤「OK」をクリック。\n"]

{"sheet":"環境","index":1,"n_rows":221,"n_cols":77,"rows_kept":221,"cut":false,"hidden":false,"merged":[[1,3,3,3],[1,4,2,6],[1,17,3,17],[1,18,3,18],[1,16,3,16],[1,7,2,15],[0,11,0,24],[2,47,3,47],[2,39,3,39],[2,40,3,40],[1,21,2,24],[2,27,3,27],[2,36,3,36],[2,37,3,37],[2,38,3,38],[2,41,3,41],[2,42,3,42],[1,19,3,19],[1,20,3,20]]}
["環境シート",null,null,null,null,null,null,null,null,null,null,"操作手順\n（１）環境調査のデータを入力し、①のボタンを押してください。AA～AV列が自動計算されます。\n（２）計算終了後は、「魚類」シートに移動してください。\n※B4セルにポインターを当ててもメモが表示されない場合、またはメモが常に表示されている場合には、「使用上の注意」シートのA5セルの手順で設定変更してください。\n※未計測のセルは、空欄にしてください。\n"]
[null,null,null,"水路幅（cm）","水深（cm）",null,null,"流速（cm/秒） ",null,null,null,null,null,null,null,null,"陸地（cm）","沈水植物の幅（cm）","抽水植物の幅（cm）","垂下植物の幅（cm）","リタ―\n（ｃｍ）","河床材料％",null,null,null,null,"計算結果"]
[null,"調査区間名",null,null,null,null,null,null,null,null,null,null,null,null,null,null,null,null,null,null,null,null,null,null,null,null,null,"水路幅（cm）","水深（cm）",null,null,null,"流速（cm/s）",null,null,null,"陸地（％）","沈水植物（％）","抽水植物（％）","垂下植物（％）","リタ―（％）","全植物（％）","全カバー（％）","河床材料（％）",null,null,null,"N",null,null,null,"水路幅cm","水深cm",null,null,null,"流速cm/s",null,null,null,"陸地％","沈水植物％","抽水植物％","垂下植物％","リタ―","全植物％","全カバー","河床材料％"]
[null,null,null,null,"左","中","右","左\n1回目","2回目","3回目","中\n1回目","2回目","3回目","右\n1回目","2回目","3回目",null,null,null,null,null,"石・礫","砂","泥","ｺﾝｸﾘｰﾄ",null,"調査区間",null,"最小","最大","平均","標準偏差","最小","最大","平均","標準偏差",null,null,null,null,null,null,null,"石・礫","砂","泥","ｺﾝｸﾘｰﾄ",null,null,null,"調査地点",null,"最小","最大","平均","標準偏差","最小","最大","平均","標準偏差",null,null,null,null,null,null,null,"石・礫","砂","泥","ｺﾝｸﾘｰﾄ"]
[1,null,null,null,null,null,null,null,null,null,null,null,null,null,null,null,null,null,null,null,null,null,null,null,null,null,null,null,null,null,null,null,null,null,null,null,null,null,null,null,null,null,null,null,null,null,null,null,null,null,{"$f":"AY11","v":"区間10"},{"$f":"AVERAGE(BA11:BA20)","v":400},{"$f":"MIN(BB11:BD20)","v":23},{"$f":"MAX(BB11:BD20)","v":45},{"$f":"AVERAGE(BB11:BD20)","v":32.93333333333333},{"$f":"STDEVP(BB11:BD20)","v":6.2872004015212433},{"$f":"MIN(BW11:BY20)","v":24.5},{"$f":"MAX(BW11:BY20)","v":50.5},{"$f":"AVERAGE(BW11:BY20)","v":35.5},{"$f":"STDEVP(BW11:BY20)","v":10.158740079360236},{"$f":"AVERAGE(BN11:BN20)","v":0},{"$f":"AVERAGE(BO11:BO20)","v":1.5},0,17,{"$f":"AVERAGE(BR11:BR20)","v":0},{"$f":"IFERROR(BJ5,0)+IFERROR(BK5,0)+IFERROR(BL5,0)","v":18.5},{"$f":"MIN(BN5+IFERROR(BM5,0),100)","v":18.5},{"$f":"AVERAGE(BS11:BS20)","v":62},{"$f":"AVERAGE(BT11:BT20)","v":22},{"$f":"AVERAGE(BU11:BU20)","v":16},{"$f":"AVERAGE(BV11:BV20)","v":0}]
[2,null,null,null,null,null,null,null,null,null,null,null,null,null,null,null,null,null,null,null,null,null,null,null,null,null,null,null,null,null,null,null,null,null,null,null,null,null,null,null,null,null,null,null,null,null,null,null,null,null,"N",{"$f":"COUNT(BA11:BA20)","v":5},{"$f":"COUNT(BB11:BD20)","v":15},{"$f":"COUNT(BB11:BD20)","v":15},{"$f":"COUNT(BB11:BD20)","v":15},{"$f":"COUNT(BB11:BD20)","v":15},{"$f":"COUNT(BW11:BY20)","v":5},{"$f":"COUNT(BW11:BY20)","v":5},{"$f":"COUNT(BW11:BY20)","v":5},{"$f":"COUNT(BW11:BY20)","v":5},{"$f":"COUNT(BN11:BN20)","v":5},{"$f":"COUNT(BO11:BO20)","v":5},5,5,5,{"$f":"COUNT(BO11:BQ20)","v":15},{"$f":"COUNT(BO11:BR20)","v":20},{"$f":"COUNT(BS11:BS20)","v":5},5,5,{"$f":"COUNT(BV11:BV20)","v":5}]
[3]
[4]
[5,null,null,null,null,null,null,null,null,null,null,null,null,null,null,null,null,null,null,null,null,null,null,null,null,null,null,null,null,null,null,null,null,null,null,null,null,null,null,null,null,null,null,null,null,null,null,null,null,null,null,null,"水路幅（cm）","水深（cm）",null,null,"流速（cm/秒） ",null,null,null,null,null,null,null,null,"陸地（cm）","沈水植物の幅（cm）","抽水植物の幅（cm）","垂下植物の幅（cm）","リタ―\n（ｃｍ）","河床材料％",null,null,null,"流速"]
[6,null,null,null,null,null,null,null,null,null,null,null,null,null,null,null,null,null,null,null,null,null,null,null,null,null,null,null,null,null,null,null,null,null,null,null,null,null,null,null,null,null,null,null,null,null,null,null,null,null,"調査地点",null,null,"左","中","右","左",null,null,"中",null,null,"右",null,null,null,null,null,null,null,"石・礫","砂","泥","ｺﾝｸﾘｰﾄ","左","中","右"]
[7,null,null,null,null,null,null,null,null,null,null,null,null,null,null,null,null,null,null,null,null,null,null,null,null,null,null,null,null,null,null,null,null,null,null,null,null,null,null,null,null,null,null,null,null,null,null,null,null,1,"区間10",1,400,32,31,38,null,null,null,24,25,null,null,null,null,0,2.5,0,30,0,40,30,30,0,null,24.5]
[8,null,null,null,null,null,null,null,null,null,null,null,null,null,null,null,null,null,null,null,null,null,null,null,null,null,null,null,null,null,null,null,null,null,null,null,null,null,null,null,null,null,null,null,null,null,null,null,null,2,null,2,400,35,33,34,null,null,null,35,36,null,null,null,null,0,0,0,35,0,60,40,0,0,null,35.5]
[9,null,null,null,null,null,null,null,null,null,null,null,null,null,null,null,null,null,null,null,null,null,null,null,null,null,null,null,null,null,null,null,null,null,null,null,null,null,null,null,null,null,null,null,null,null,null,null,null,3,null,3,400,40,45,43,null,null,null,50,51,null,null,null,null,0,0,0,20,0,40,30,30,0,null,50.5]
[10,null,null,null,null,null,null,null,null,null,null,null,null,null,null,null,null,null,null,null,null,null,null,null,null,null,null,null,null,null,null,null,null,null,null,null,null,null,null,null,null,null,null,null,null,null,null,null,null,4,null,4,400,26,23,24,null,null,null,42,43,null,null,null,null,0,5,0,0,0,80,10,10,0,null,42.5]
[11,null,null,null,null,null,null,null,null,null,null,null,null,null,null,null,null,null,null,null,null,null,null,null,null,null,null,null,null,null,null,null,null,null,null,null,null,null,null,null,null,null,null,null,null,null,null,null,null,5,null,5,400,30,28,32,null,null,null,24,25,null,null,null,null,0,0,0,0,0,90,0,10,0,null,24.5]
[12,null,null,null,null,null,null,null,null,null,null,null,null,null,null,null,null,null,null,null,null,null,null,null,null,null,null,null,null,null,null,null,null,null,null,null,null,null,null,null,null,null,null,null,null,null,null,null,null,6]
[13,null,null,null,null,null,null,null,null,null,null,null,null,null,null,null,null,null,null,null,null,null,null,null,null,null,null,null,null,null,null,null,null,null,null,null,null,null,null,null,null,null,null,null,null,null,null,null,null,7]
[14,null,null,null,null,null,null,null,null,null,null,null,null,null,null,null,null,null,null,null,null,null,null,null,null,null,null,null,null,null,null,null,null,null,null,null,null,null,null,null,null,null,null,null,null,null,null,null,null,8]
[15,null,null,null,null,null,null,null,null,null,null,null,null,null,null,null,null,null,null,null,null,null,null,null,null,null,null,null,null,null,null,null,null,null,null,null,null,null,null,null,null,null,null,null,null,null,null,null,null,9]
[16,null,null,null,null,null,null,null,null,null,null,null,null,null,null,null,null,null,null,null,null,null,null,null,null,null,null,null,null,null,null,null,null,null,null,null,null,null,null,null,null,null,null,null,null,null,null,null,null,10]
[17]
[18]
[19]
[20]
[21]
[22]
[23]
[24]
[25]
[26]
[27]
[28]
[29]
[30]
[31]
[32]
[33]
[34]
[35]
[36]
[37]
[38]
[39]
[40]
[41]
[42]
[43]
[44]
[45]
[46]
[47]
[48]
[49]
[50]
[51]
[52]
[53]
[54]
[55]
[56]
[57]
[58]
[59]
[60]
[61]
[62]
[63]
[64]
[65]
[66]
[67]
[68]
[69]
[70]
[71]
[72]
[73]
[74]
[75]
[76]
[77]
[78]
[79]
[80]
[81]
[82]
[83]
[84]
[85]
[86]
[87]
[88]
[89]
[90]
[91]
[92]
[93]
[94]
[95]
[96]
[97]
[98]
[99]
[100]
[101]
[102]
[103]
[104]
[105]
[106]
[107]
[108]
[109]
[110]
[111]
[112]
[113]
[114]
[115]
[116]
[117]
[118]
[119]
[120]
[121]
[122]
[123]
[124]
[125]
[126]
[127]
[128]
[129]
[130]
[131]
[132]
[133]
[134]
[135]
[136]
[137]
[138]
[139]
[140]
[141]
[142]
[143]
[144]
[145]
[146]
[147]
[148]
[149]
[150]
[151]
[152]
[153]
[154]
[155]
[156]
[157]
[158]
[159]
[160]
[161]
[162]
[163]
[164]
[165]
[166]
[167]
[168]
[169]
[170]
[171]
[172]
[173]
[174]
[175]
[176]
[177]
[178]
[179]
[180]
[181]
[182]
[183]
[184]
[185]
[186]
[187]
[188]
[189]
[190]
[191]
[192]
[193]
[194]
[195]
[196]
[197]
[198]
[199]
[200]
[201]
[202]
[203]
[204]
[205]
[206]
[207]
[208]
[209]
[210]
[211]
[212]
[213]
[214]
[215]
[216]
[217]

{"sheet":"魚類","index":2,"n_rows":64,"n_cols":37,"rows_kept":64,"cut":false,"hidden":false,"merged":[[1,33,3,33],[1,34,3,34],[1,35,3,35],[1,36,3,36],[0,12,0,32]]}
["魚類シート",null,null,null,null,null,null,null,null,null,null,null,"操作手順\n（３）魚類調査のデータを入力し、②のボタンを押してください。AH～AK列が自動的に集計されます。\n※外来種など、種数などの集計から除外する種は、解析対象のチェックマークを外してください。\n※未入力の列のチェックマークは、外す必要はありません。\n（４）計算終了後は、「集約」シートに移動してください。"]
[null,null,null,"種1","種2","種3","種4","種5","種6","種7","種8","種9","種10","種11","種12","種13","種14","種15","種16","種17","種18","種19","種20","種21","種22","種23","種24","種25","種26","種27","種28","種29","種30","種数","総個体数","シャノンの多様度","シンプソンの多様度"]
[null,null,"種名→"]
[null,null,"解析対象→",true,true,true,true,true,true,true,true,true,true,true,true,true,true,true,true,true,true,true,true,true,true,true,true,true,true,true,true,true,true]
[1]
[2]
[3]
[4]
[5]
[6]
[7]
[8]
[9]
[10]
[11]
[12]
[13]
[14]
[15]
[16]
[17]
[18]
[19]
[20]
[21]
[22]
[23]
[24]
[25]
[26]
[27]
[28]
[29]
[30]
[31]
[32]
[33]
[34]
[35]
[36]
[37]
[38]
[39]
[40]
[41]
[42]
[43]
[44]
[45]
[46]
[47]
[48]
[49]
[50]
[51]
[52]
[53]
[54]
[55]
[56]
[57]
[58]
[59]
[60]

{"sheet":"集約","index":3,"n_rows":4,"n_cols":63,"rows_kept":4,"cut":false,"hidden":false,"merged":[[2,15,3,15],[2,16,3,16],[2,14,3,14],[2,1,3,1],[2,10,3,10],[2,11,3,11],[2,12,3,12],[2,13,3,13],[0,17,0,31]]}
["集約シート",null,null,null,null,null,null,null,null,null,null,null,null,null,null,null,null,"操作手順\n（５）③と④のボタンを順に押してください。環境と魚類のデータがコピーされます。\n※Y4～BF4セルのチェックボックスは、評価スコア作成時の魚類の評価指標を選択・変更するためのものです。デフォルト（種数・総個体数）のままでも計算できます。評価指標は種を含めて最大3つ選択可能です。1～3箇所にチェックマークを入れた後、⑤のボタンを押してください。\n（６）行ごとに、環境データの調査区間（Ａ列）と魚類データの調査区間（Ｘ列）が揃うように並べ替えて、⑤のボタンを押してください。評価式＊作成シートにデータがコピーされます。\n※⑤のボタンを押した際に、調査区間が揃っていない行については、W列に「レ」が表示されます。正しく並べ替えて、改めて⑤のボタンを押してください。\n\n＊「評価式」はマニュアルの「評価スコア式」と同義です。当プログラムでは簡単のため「評価式」としています。"]
[null,null,null,null,null,null,null,null,null,null,null,null,null,null,null,null,null,null,null,null,null,null,null,null,null,null,null,null,"種1","種2","種3","種4","種5","種6","種7","種8","種9","種10","種11","種12","種13","種14","種15","種16","種17","種18","種19","種20","種21","種22","種23","種24","種25","種26","種27","種28","種29","種30"]
[null,"水路幅（cm）","水深（cm）",null,null,null,"流速（cm/s）",null,null,null,"陸地（％）","沈水植物（％）","抽水植物（％）","垂下植物（％）","リタ―（％）","全植物（％）","全カバー（％）","河床材料（％）",null,null,null,null,null,"調査区間","種数","総個体数","シャノンの多様度","シンプソンの多様度"]
["調査区間",null,"最小","最大","平均","標準偏差","最小","最大","平均","標準偏差",null,null,null,null,null,null,null,"石・礫","砂","泥","ｺﾝｸﾘｰﾄ",null,null,null,true,true,false,false,false,false,false,false,false,false,false,false,false,false,false,false,false,false,false,false,false,false,false,false,false,false,false,false,false,false,false,false,false,false,null,null,null,"種数","総個体数"]

{"sheet":"評価式作成","index":4,"n_rows":200,"n_cols":116,"rows_kept":200,"cut":false,"hidden":false,"merged":[[13,3,13,4],[14,3,14,4],[0,112,0,115],[2,61,3,61],[11,1,11,2],[2,1,3,1],[2,31,3,31],[0,5,0,24],[9,3,9,4],[10,3,10,4],[11,3,11,5]]}
["評価式作成シート",null,null,null,null,"操作手順\n（７）⑥のボタンを押してください。計算が終わると、Y21～Y80セルに各区間のスコアが表示され、グラフが更新されます。\n※計算は、PCの性能によりますが、１０～２０分で終了します。\n※グラフのレイアウトが乱れる場合があります。この場合には、適宜グラフの設定を変更してください。\n※再計算する際は、改めて⑥のボタンを押してください。なお、魚類の評価指標を変更して再計算する場合には、\n   集約シートのY4～BF4セルのチェックマークを変更して、改めて⑤のボタン、⑥のボタンを押してください。",null,null,null,null,null,null,null,null,null,null,null,null,null,null,null,null,null,null,null,null,null,null,29,30,31,32,33,34,35,36,37,38,39,40,41,42,43,44,45,46,47,48,49,50,51,52,53,54,55,56,57,58,59,60,61,62,63,64,65,66,67,68,69,70,71,72,73,74,75,76,77,78,79,80,81,82,83,84,null,null,null,null,null,null,null,null,null,null,null,null,97,98,99,100,null,null,null,null,null,null,null,null,null,null,null,"sample size","significance level: α (two-tailed probability)"]
["環境の各因子と魚類データ間の相関係数",null,null,null,null,null,null,null,null,null,null,null,null,null,null,null,null,null,null,null,null,null,null,null,null,null,null,null,null,null,"環境の各因子と魚類データ間の相関係数",null,null,null,null,null,null,null,null,null,null,null,null,null,null,null,null,null,null,null,null,null,null,null,null,null,null,null,null,null,null,null,1,2,3,4,5,6,7,8,9,10,11,12,13,14,15,16,17,18,19,null,null,null,1,null,6,null,9,11,null,null,null,null,null,null,null,null,null,null,null,null,null,null,null,null,null,null,null,null,null,"n",0.1,0.05,0.02,0.01]
[null,"水路幅（cm）","水深（cm）",null,null,null,"流速（cm/s）",null,null,null,null,"植物",null,null,null,null,null,"河床材料（％）",null,null,null,"魚類指標1～3",null,null,null,null,null,null,null,null,null,"水路幅（cm）","水深（cm）",null,null,null,"流速（cm/s）",null,null,null,null,"植物",null,null,null,null,null,"河床材料（％）",null,null,null,null,null,null,null,null,null,null,null,null,null,"水路幅（cm）","水深（cm）",null,null,null,"流速（cm/s）",null,null,null,null,"植物",null,null,null,null,null,"河床材料（％）",null,null,null,null,null,null,"最小",null,"最大",null,"陸地","抽水植物",null,null,null,null,null,null,null,null,null,null,null,null,null,null,null,null,null,null,null,null,null,3,0.98768800000000001,0.99691700000000005,0.99950700000000003,0.99987700000000002]
[null,null,"最小","最大","平均","標準偏差","最小","最大","平均","標準偏差","陸地","沈水","抽水","垂下","リタ―","全植物","全カバー","石・礫","砂","泥","ｺﾝｸﾘｰﾄ","種数","総個体数",null,null,null,null,null,null,null,null,null,"最小","最大","平均","標準偏差","最小","最大","平均","標準偏差","陸地","沈水","抽水","垂下","リタ―","全植物","全カバー","石・礫","砂","泥","ｺﾝｸﾘｰﾄ","種数",null,null,null,null,null,null,null,null,null,null,"最小","最大","平均","標準偏差","最小","最大","平均","標準偏差","陸地","沈水","抽水","垂下","リタ―","全植物","全カバー","石・礫","砂","泥","ｺﾝｸﾘｰﾄ",null,null,null,-1.9510602819241857E-2,null,-8.6366091066208475E-2,null,9.7266635263578732E-2,0.14473764080810889,null,7.313100240042532,0.88970584410120668,0.80851189070589624,0.75326078206840397,0.77646239183294041,{"$f":"IF(COUNTIF(CT4:CV4,\"a\")>0,\"A\",IF(COUNTIF(CT4:CV4,\"b\")>0,\"B\",\"C\"))","v":"A"},{"$f":"IF(CP4>=LOOKUP($BX$20,$DH$3:$DH$96,$DJ$3:$DJ$96),IF(CP4>=LOOKUP($BX$20,$DH$3:$DH$96,$DL$3:$DL$96),\"a\",\"b\"),\"c\")","v":"a"},{"$f":"IF(CQ4>=LOOKUP($BX$20,$DH$3:$DH$96,$DJ$3:$DJ$96),IF(CQ4>=LOOKUP($BX$20,$DH$3:$DH$96,$DL$3:$DL$96),\"a\",\"b\"),\"c\")","v":"b"},{"$f":"IF(CR4>=LOOKUP($BX$20,$DH$3:$DH$96,$DJ$3:$DJ$96),IF(CR4>=LOOKUP($BX$20,$DH$3:$DH$96,$DL$3:$DL$96),\"a\",\"b\"),\"c\")","v":"a"},null,null,null,null,null,null,null,null,null,null,null,4,0.9,0.95,0.98,0.99]
["除外項目は外す","-",true,true,true,false,true,true,true,false,true,true,true,true,true,true,true,true,true,true,true,true,true,false,null,null,null,null,null,null,{"$f":"V4","v":"種数"},{"$f":"IFERROR(PEARSON(B21:B80,$V$21:$V$80),0)","v":0},{"$f":"IFERROR(PEARSON(C21:C80,$V$21:$V$80),0)","v":0},{"$f":"IFERROR(PEARSON(D21:D80,$V$21:$V$80),0)","v":0},0,0,0,0,0,0,0,0,0,0,0,0,0,0,0,0,{"$f":"IFERROR(PEARSON(U21:U80,$V$21:$V$80),0)","v":0},null,null,null,null,null,null,null,null,null,"選択済",null,1,0,0,0,0,1,0,0,1,0,1,0,0,0,0,0,0,0,0,null,null,null,-7.148087868805629E-2,null,-6.6973709775825632E-2,null,0.20750434796661374,0.65404106356950431,null,null,null,null,null,null,null,null,null,null,null,null,null,null,null,null,null,null,null,null,null,5,0.80538399999999999,0.87833899999999998,0.93433299999999997,0.958735]
[null,null,null,null,null,null,null,null,null,null,null,null,null,null,null,null,null,null,null,null,null,null,null,null,null,null,null,null,null,null,{"$f":"W4","v":"総個体数"},{"$f":"IFERROR(PEARSON(B21:B80,$W$21:$W$80),0)","v":0},{"$f":"IFERROR(PEARSON(C21:C80,$W$21:$W$80),0)","v":0},0,0,0,0,0,0,0,0,0,0,0,0,0,0,0,0,0,{"$f":"IFERROR(PEARSON(U21:U80,$W$21:$W$80),0)","v":0},null,null,null,null,null,null,null,null,null,"選択肢",null,0,0,0,0,0,0,0,0,0,0,0,0,0,0,0,1,1,1,0,{"$f":"SUM(BK6:CC6)","v":3},null,null,-8.5738572478725739E-2,null,-1.7931099757951767,null,0.73404948602301445,0.51568288475415847,null,null,null,null,null,null,null,null,null,null,null,null,null,null,null,null,null,null,null,null,null,6,0.72929900000000003,0.81140100000000004,0.88219400000000003,0.91720000000000002]
["反復回数",500,null,"評価式のパラメータ",null,null,null,null,null,null,null,null,null,null,null,null,null,null,null,null,null,null,null,null,null,null,null,null,null,null,{"$f":"X4","v":0},{"$f":"IFERROR(PEARSON(B21:B80,$X$21:$X$80),0)","v":0},{"$f":"IFERROR(PEARSON(C21:C80,$X$21:$X$80),0)","v":0},0,0,0,0,0,0,0,0,0,0,0,0,0,0,0,0,0,{"$f":"IFERROR(PEARSON(U21:U80,$X$21:$X$80),0)","v":0},null,null,null,null,null,null,null,null,null,"現在",null,0,0,0,0,0,0,0,0,0,0,0,0,0,0,0,0,0,0,0,null,null,null,null,null,null,null,null,null,null,null,null,null,null,null,null,null,null,null,null,null,null,null,null,null,null,null,null,null,null,7,0.66943900000000001,0.75449200000000005,0.832874,0.87452600000000003]
[null,null,null,null,null,"水深",null,"流速",null,"陸地","植物","河床材料","定数",null,null,null,null,null,null,null,null,null,null,null,null,null,null,null,null,null,"Σ|R|",{"$f":"ABS(AF5)+ABS(AF6)+ABS(AF7)","v":0},{"$f":"ABS(AG5)+ABS(AG6)+ABS(AG7)","v":0},0,0,0,0,0,0,0,0,0,0,0,0,0,0,0,0,0,{"$f":"ABS(AY5)+ABS(AY6)+ABS(AY7)","v":0},null,null,null,null,null,null,null,null,null,null,null,null,null,null,null,null,null,null,null,null,null,null,null,null,null,null,null,null,null,null,null,null,null,null,null,null,null,null,null,null,null,null,null,null,null,null,null,null,null,null,null,null,null,null,null,null,null,null,null,null,8,0.62148899999999996,0.70673399999999997,0.78871999999999998,0.83434200000000003]
[null,null,null,null,"\n",null,null,null,null,null,null,null,null,null,null,null,null,null,null,null,null,null,null,null,null,null,null,null,null,null,"標準偏差",{"$f":"IFERROR(STDEV(B21:B80),0)","v":0},{"$f":"IFERROR(STDEV(C21:C80),0)","v":0},0,0,0,0,0,0,0,0,0,0,0,0,0,0,0,0,0,0,0,null,null,null,null,null,null,null,null,null,null,null,1,null,6,null,9,11,null,null,null,null,null,null,null,null,null,null,null,null,null,null,null,1,null,null,null,null,null,null,null,null,null,null,null,null,null,null,null,null,null,null,null,null,null,null,null,null,null,null,9,0.582206,0.66638399999999998,0.749776,0.79768099999999997]
[null,null,null,"係数",null,null,null,null,null,null,null,null,null,null,null,null,null,null,null,null,null,null,null,null,null,null,null,null,null,null,null,null,null,null,null,null,null,null,null,null,null,null,null,null,null,null,null,null,"魚類データ間の相関係数",null,null,null,null,null,null,null,null,null,null,null,null,null,null,"u1","u2","u3","u4","u5","u6","u7",null,null,null,null,null,null,null,null,null,null,null,null,null,null,"最小","最小^2",null,null,null,null,null,null,null,null,null,null,null,null,null,null,null,null,null,null,null,null,null,null,null,null,null,10,0.54935699999999998,0.63189700000000004,0.71545899999999996,0.76459200000000005]
[null,null,null,"標準化係数",null,null,null,null,null,null,null,null,null,null,null,null,null,null,null,null,null,null,null,null,null,null,null,null,null,null,null,null,null,null,null,null,null,null,null,null,null,null,null,null,null,null,null,null,{"$f":"V4&\"-\"&W4","v":"種数-総個体数"},{"$f":"IFERROR(PEARSON(W21:W80,$V$21:$V$80),0)","v":0},null,null,null,null,null,null,null,null,null,null,null,null,null,"水深",null,"流速",null,"陸地","植物","底質","適合度","相関係数","相関係数","相関係数",null,null,null,null,null,null,null,null,null,null,0.8062905797958374,0,0.77229726314544678,0,0.64873610973358153,4.1179936141967771E-2,0.58409607410430908,0.6772372502467352,0.44931441619958457,0.23449888368603902,0.37961020159478764,null,null,null,null,null,null,null,null,null,null,null,null,null,null,null,null,11,0.52140399999999998,0.60206899999999997,0.68509500000000001,0.73478600000000005]
["開始時刻",null,null,"\n式の適合度",null,null,null,null,null,null,null,null,null,null,null,null,null,null,null,null,null,null,null,null,null,null,null,null,null,null,null,null,null,null,null,null,null,null,null,null,null,null,null,null,null,null,null,null,{"$f":"V4&\"-\"&X4","v":"種数-"},{"$f":"IFERROR(PEARSON(X21:X80,$V$21:$V$80),0)","v":0},null,null,null,null,null,null,null,null,null,null,null,null,null,"最小","最小^2","最大","最大^2","陸地","抽水植物",null,null,null,null,null,null,null,null,null,null,null,null,null,null,null,null,null,null,null,null,null,null,null,null,null,null,null,null,null,null,null,null,null,null,null,null,null,null,null,null,null,null,12,0.49726500000000001,0.57598300000000002,0.65807000000000004,0.70788799999999996]
[null,null,null,null,null,"適合度",null,null,null,null,null,null,null,null,null,null,null,null,null,null,null,null,null,null,null,null,null,null,null,null,null,null,null,null,null,null,null,null,null,null,null,null,null,null,null,null,null,null,{"$f":"W4&\"-\"&X4","v":"総個体数-"},{"$f":"IFERROR(PEARSON(X21:X80,$W$21:$W$80),0)","v":0},null,null,null,null,null,null,null,null,null,null,null,null,null,-0.17729263873181161,0,-0.77595198154449463,0,0.95996999700000007,0.999999996,-0.97500002384185791,{"$f":"(BT13+BU13+BV13)/6+0.5","v":0.88537315737748412},{"$f":"IFERROR(PEARSON(BI21:BI80,$BS$21:$BS$80),0)","v":0.78071638745461924},{"$f":"IFERROR(PEARSON(BJ21:BJ80,$BS$21:$BS$80),0)","v":0.74582718737284837},{"$f":"IFERROR(PEARSON(BK21:BK80,$BS$21:$BS$80),0)","v":0.78569536943743779},null,null,null,null,null,null,null,null,null,null,2,null,null,null,null,null,null,null,null,null,null,null,null,null,null,null,null,null,null,null,null,null,null,null,null,null,null,13,0.47615600000000002,0.55294299999999996,0.63386299999999995,0.68352800000000002]
[null,null,null,"値",null,null,null,null,null,null,null,null,null,null,null,null,null,null,null,null,null,null,null,null,null,null,null,null,null,null,"スコアと魚類指標間の相関確認用グラフ",null,null,null,null,null,null,null,null,null,null,null,null,null,null,null,null,null,null,null,null,null,null,null,null,null,null,null,null,null,null,null,"係数",{"$f":"4/($BT$19-$BT$20)*BL13","v":-2.0450389635161621E-2},{"$f":"4/($BT$19-$BT$20)*BM13","v":0},-8.9504676980778478E-2,0,0.11073082682474852,0.11534821580660838,-0.112464513611417,{"$f":"1-4*BT20/(BT19-BT20)","v":7.322108113364604},null,null,null,null,null,null,null,null,null,null,null,null,null,"最大","最大^2",null,null,null,null,null,null,null,null,null,null,null,null,null,null,null,null,null,null,null,null,null,null,null,null,null,14,0.45750000000000002,0.53241300000000003,0.61204700000000001,0.66137599999999996]
[null,null,null,"モデルの評価",null,null,null,null,null,null,null,null,null,null,null,null,null,null,null,null,null,null,null,null,null,null,null,null,null,null,null,null,null,null,null,null,null,null,null,null,null,null,null,null,null,null,null,null,null,null,null,null,null,null,null,null,null,null,null,null,null,null,null,{"$f":"IFERROR(ABS(BL14/STDEVP(BL21:BL80)),0)","v":4.1709439643391856E-3},{"$f":"IFERROR(ABS(BM14/STDEVP(BM21:BM80)),0)","v":0},3.8638512208500615E-3,0,1.3150595673301567E-2,2.901669747142057E-2,{"$f":"IFERROR(ABS(BR14/STDEVP(BR21:BR80)),0)","v":0},{"$f":"SUM(BL15:BR15)","v":5.0202088329911382E-2},null,null,null,null,null,null,null,null,null,null,null,null,null,0.76096627654577631,0,1,0,0.74137947122863768,0.52956940084198001,-0.29382151365280151,0.63435159343886638,0.15352793612141577,0.60937521234213965,4.320641216964255E-2,null,null,null,null,null,null,null,null,null,null,null,null,null,null,null,null,15,0.440861,0.51397700000000002,0.59226999999999996,0.64114499999999996]
[null,null,null,null,null,null,"a：p*<0.01，b：p<0.05，c：p≧0.05",null,null,null,null,null,null,null,null,null,null,null,null,null,null,null,null,null,null,null,null,null,null,null,null,null,{"$f":"IF(I14>LOOKUP($BX$20,$DH$3:$DH$96,$DJ$3:$DJ$96),IF(I14>LOOKUP($BX$20,$DH$3:$DH$96,$DL$3:$DL$96),\"**\",\"*\"),\"\")","v":""},null,null,null,null,null,null,null,null,null,null,null,null,null,null,null,null,null,null,null,null,null,null,null,null,null,null,null,null,null,null,{"$f":"IF(BL14>0,BL15/$BS$15,-BL15/$BS$15)","v":-8.3083076881765014E-2},{"$f":"IF(BM14>0,BM15/$BS$15,-BM15/$BS$15)","v":0},-7.6965946027147708E-2,0,0.26195315993391027,0.57799781715717702,0,null,null,null,null,null,null,null,null,null,null,null,null,null,null,1,0,0,0,0,0,0,null,null,null,null,null,null,null,null,null,null,null,null,null,null,null,null,null,null,null,null,16,0.425902,0.497309,0.57424500000000001,0.62259100000000001]
[null,null,null,null,null,null,"*相関係数rに対するp値",null,null,null,null,null,null,null,null,null,null,null,null,null,null,null,null,null,null,null,null,null,null,null,null,null,null,null,null,null,null,null,null,null,null,null,null,null,null,null,null,null,null,null,null,null,null,null,null,null,null,null,null,null,null,null,"SD",{"$f":"IFERROR(STDEV(BL21:BL80),0)","v":5.1682793182171443},{"$f":"IFERROR(STDEV(BM21:BM80),0)","v":229.39204674772643},{"$f":"IFERROR(STDEV(BN21:BN80),0)","v":24.417662095749915},3274.9572414511513,8.8756846371295648,4.1902664990825267,0,null,null,null,"↓1/（ベストモデルのスコアの標準偏差）",null,null,null,null,null,null,null,null,null,null,3,null,null,null,null,null,null,null,null,null,null,null,null,null,null,null,null,null,null,null,null,null,null,null,null,null,null,17,0.41236,0.48214600000000002,0.55773700000000004,0.60550599999999999]
[null,null,null,null,null,null,null,null,null,null,null,null,null,null,null,null,null,null,null,null,null,null,null,null,null,null,null,null,null,null,null,null,null,null,null,null,null,null,null,null,null,null,null,null,null,null,null,null,null,null,null,null,null,null,null,null,null,null,null,null,"y1","y2","y3","x1","x1^2","x2","x2^2","x3","x4","x5","y'",null,null,{"$f":"IFERROR(1/STDEV(BV21:BV80),0)","v":0.85027533946324929},null,null,null,null,null,null,null,null,null,null,"平均","平均^2",null,null,null,null,null,null,null,null,null,null,null,null,null,null,null,null,null,null,null,null,null,null,null,null,null,18,0.40002700000000002,0.468277,0.54254800000000003,0.58971399999999996]
[null,null,"水深（cm）",null,null,null,"流速（cm/s）",null,null,null,"陸地・植物（％）",null,null,null,null,null,null,"河床材料（％）",null,null,null,"魚類指標1～3",null,null,null,null,null,null,null,null,null,null,null,null,null,null,null,null,null,null,null,null,null,null,null,null,null,null,null,null,null,null,null,null,null,null,null,null,null,null,null,null,null,"水深",null,"流速",null,"陸地","植物","底質","max(y')",{"$f":"MAX(BS21:BS80)","v":-20.131287578556002},null,null,null,"ペア数",null,null,null,null,null,null,null,null,0.84750322341918949,0,-0.25436511635780334,0,0.21159214947509766,8.0356867817382813E-2,-0.54289650917053223,0.70813814457971291,0.36376314727694103,0.54527710845601296,0.33978861174532327,null,null,null,null,null,null,null,null,null,null,null,null,null,null,null,null,19,0.388733,0.45553100000000002,0.52851700000000001,0.57506699999999999]
["調査区間","水路幅（cm）","最小","最大","平均","標準偏差","最小","最大","平均","標準偏差","陸地","沈水植物","抽水植物","垂下植物","リタ―","全植物","全カバー","石・礫","砂","泥","ｺﾝｸﾘｰﾄ","種数","総個体数",null,"スコア",null,null,null,null,null,null,null,null,null,null,null,null,null,null,null,null,null,null,null,null,null,null,null,null,null,null,null,null,null,null,null,null,null,null,null,null,null,null,"最小","最小^2","最大","最大^2","陸地","抽水植物",null,"min(y')",{"$f":"MIN(BS21:BS80)","v":-54.80889360851279},"スコア","ベストモデルのスコア",null,{"$f":"SUM(BX21:BX80)","v":10},{"$f":"MAX(BY21:BY80)","v":10},null,null,null,null,null,null,null,1,0,0,0,0,0,0,null,null,null,null,null,null,null,null,null,null,null,null,null,null,null,null,null,null,null,null,20,0.37834099999999998,0.44376300000000002,0.51550499999999999,0.56143500000000002]
[null,null,null,null,null,null,null,null,null,null,null,null,null,null,null,null,null,null,null,null,null,null,null,null,null,null,null,null,null,null,null,null,null,null,null,null,null,null,null,null,null,null,null,null,null,null,null,null,null,null,null,null,null,null,null,null,null,null,null,1,7,163,2.4612923411389227,16,256,45.5,2070.25,5,0,null,{"$f":"IF(BX21=1,SUMPRODUCT(BL21:BR21,$BL$13:$BR$13),\"\")","v":-33.342647394983487},{"$f":"SUMPRODUCT($BL$14:$BR$14,BL21:BR21)+$BS$14","v":3.4760932107003399},{"$f":"ROUND(BT21,0)","v":3},3.5576066277400704,4,{"$f":"IF(COUNT(BI21:BK21)*COUNT(BL21:BR21)>0,1,0)","v":1},{"$f":"IF(COUNT(BI21:BR21)>0,BH21,0)","v":1},{"$f":"IF(BX21=1,SUMPRODUCT(BL21:BR21,$BL$14:$BR$14)+$BS$14,\"\")","v":3.4760932107003399},null,null,null,null,null,null,null,null,5,null,null,null,null,null,null,null,null,null,null,null,null,null,null,null,null,null,null,null,null,null,null,null,null,21,0.36873699999999998,0.43285800000000002,0.50339699999999998,0.54871099999999995]
[null,null,null,null,null,null,null,null,null,null,null,null,null,null,null,null,null,null,null,null,null,null,null,null,null,null,null,null,null,null,null,null,null,null,null,null,null,null,null,null,null,null,null,null,null,null,null,null,null,null,null,null,null,null,null,null,null,null,null,2,8,136,2.5855534404148557,30,900,42.5,1806.25,4.5,0,null,{"$f":"IF(BX22=1,SUMPRODUCT(BL22:BR22,$BL$13:$BR$13),\"\")","v":-33.976873391095367},3.4029363733380391,{"$f":"ROUND(BT22,0)","v":3},3.4949231438375201,3,{"$f":"IF(COUNT(BI22:BK22)*COUNT(BL22:BR22)>0,1,0)","v":1},{"$f":"IF(COUNT(BI22:BR22)>0,BH22,0)","v":2},null,null,null,null,null,null,null,null,null,"最小","最小^2",null,null,null,null,null,null,null,null,null,null,null,null,null,null,null,null,null,null,null,null,null,null,null,22,0.35982700000000001,0.42271399999999998,0.49209399999999998,0.53680000000000005]
[null,null,null,null,null,null,null,null,null,null,null,null,null,null,null,null,null,null,null,null,null,null,null,null,null,null,null,null,null,null,null,null,null,null,null,null,null,null,null,null,null,null,null,null,null,null,null,null,null,null,null,null,null,null,null,null,null,null,null,3,7,70,2.432956697063057,28,784,42.5,1806.25,10.5,1.5,null,-26.362468137631748,4.281244437266766,4,4.3346506222696402,4,1,3,null,null,null,null,null,null,null,0.92421537306213375,0,-0.75337070226669312,0,-0.69381604194641111,-0.98996965749359134,0.112640380859375,0.58073054975582206,9.6819830987577737E-2,0.46709071481631131,-7.9527247268957046E-2,null,null,null,null,null,null,null,null,null,null,null,null,null,null,null,null,23,0.35153099999999998,0.41324699999999998,0.481512,0.52561999999999998]
[null,null,null,null,null,null,null,null,null,null,null,null,null,null,null,null,null,null,null,null,null,null,null,null,null,null,null,null,null,null,null,null,null,null,null,null,null,null,null,null,null,null,null,null,null,null,null,null,null,null,null,null,null,null,null,null,null,null,null,4,8,176,2.356518159713882,19,361,31.5,992.25,8,0,null,-20.131287578556002,4.9999999999999991,5,5,5,1,4,null,null,null,null,null,null,null,0,0,-1,0,0,0,0,null,null,null,null,null,null,null,null,null,null,null,null,null,null,null,null,null,null,null,null,24,0.34378300000000001,0.40438600000000002,0.47157900000000003,0.51510100000000003]
[null,null,null,null,null,null,null,null,null,null,null,null,null,null,null,null,null,null,null,null,null,null,null,null,null,null,null,null,null,null,null,null,null,null,null,null,null,null,null,null,null,null,null,null,null,null,null,null,null,null,null,null,null,null,null,null,null,null,null,5,7,67,2.1272109672949084,19,361,45.5,2070.25,1,0,null,-37.714405299178921,2.9718187344958604,3,3.1100082782280305,3,1,5,null,null,null,null,null,null,null,null,null,6,null,null,null,null,null,null,null,null,null,null,null,null,null,null,null,null,null,null,null,null,null,null,null,null,25,0.33652399999999999,0.39606999999999998,0.462231,0.50518200000000002]
[null,null,null,null,null,null,null,null,null,null,null,null,null,null,null,null,null,null,null,null,null,null,null,null,null,null,null,null,null,null,null,null,null,null,null,null,null,null,null,null,null,null,null,null,null,null,null,null,null,null,null,null,null,null,null,null,null,null,null,6,6,33,2.0403733936884962,18,324,66.5,4422.25,10.5,0,null,-44.712389301381506,2.1646137623697852,2,2.2398640036608919,2,1,6,null,null,null,null,null,null,null,null,null,"最大","最大^2",null,null,null,null,null,null,null,null,null,null,null,null,null,null,null,null,null,null,null,null,null,null,null,26,0.32970500000000003,0.38824399999999998,0.45341300000000001,0.49580800000000003]
[null,null,null,null,null,null,null,null,null,null,null,null,null,null,null,null,null,null,null,null,null,null,null,null,null,null,null,null,null,null,null,null,null,null,null,null,null,null,null,null,null,null,null,null,null,null,null,null,null,null,null,null,null,null,null,null,null,null,null,7,3,5,1.3709505944546687,13,169,95.5,9120.25,22.5,0,null,-54.80889360851279,1.0000000000000009,1,1,1,1,7,null,null,null,null,null,null,null,-0.24967626129150389,0,-0.81443440914154053,0,-0.85983596709106458,0.17614919444897462,-6.5576438792049885E-3,0.81089192321126347,0.55059382297827753,0.72907929758407519,0.58567841870522752,null,null,null,null,null,null,null,null,null,null,null,null,null,null,null,null,27,0.32328299999999999,0.38086300000000001,0.44507799999999997,0.48693199999999998]
[null,null,null,null,null,null,null,null,null,null,null,null,null,null,null,null,null,null,null,null,null,null,null,null,null,null,null,null,null,null,null,null,null,null,null,null,null,null,null,null,null,null,null,null,null,null,null,null,null,null,null,null,null,null,null,null,null,null,null,8,7,36,2.225480556997868,20,400,89.5,8010.25,26.5,9,null,-38.5543502383685,2.874932583997011,3,3.0733276349898544,3,1,8,null,null,null,null,null,null,null,0,0,-1,0,0,0,0,null,null,null,null,null,null,null,null,null,null,null,null,null,null,null,null,null,null,null,null,28,0.31722299999999998,0.373886,0.43718400000000002,0.47851100000000002]
[null,null,null,null,null,null,null,null,null,null,null,null,null,null,null,null,null,null,null,null,null,null,null,null,null,null,null,null,null,null,null,null,null,null,null,null,null,null,null,null,null,null,null,null,null,null,null,null,null,null,null,null,null,null,null,null,null,null,null,9,6,65,1.4489271784745672,20,400,95.5,9120.25,16.5,11,null,-50.809762105635471,1.461292685478071,1,1.8719400175730341,2,1,9,null,null,null,null,null,null,null,null,null,7,null,null,null,null,null,null,null,null,null,null,null,null,null,null,null,null,null,null,null,null,null,null,null,null,29,0.31148999999999999,0.36727799999999999,0.42969299999999999,0.47050900000000001]
[null,null,null,null,null,null,null,null,null,null,null,null,null,null,null,null,null,null,null,null,null,null,null,null,null,null,null,null,null,null,null,null,null,null,null,null,null,null,null,null,null,null,null,null,null,null,null,null,null,null,null,null,null,null,null,null,null,null,null,10,4,64,1.2193823590870305,23,529,50.5,2550.25,0,0,null,-43.263305758828643,2.3317629642265736,2,2.5028687763564417,3,1,10,null,null,null,null,null,null,null,null,null,"平均","平均^2",null,null,null,null,null,null,null,null,null,null,null,null,null,null,null,null,null,null,null,null,null,null,null,30,0.30605700000000002,0.36100700000000002,0.422572,0.46289200000000003]
[null,null,null,null,null,null,null,null,null,null,null,null,null,null,null,null,null,null,null,null,null,null,null,null,null,null,null,null,null,null,null,null,null,null,null,null,null,null,null,null,null,null,null,null,null,null,null,null,null,null,null,null,null,null,null,null,null,null,null,11,null,null,null,null,null,null,null,null,null,null,"",7.322108113364604,7,null,null,0,0,null,null,null,null,null,null,null,0.99999979999999999,0,-0.44798544049263,0,0.997,0.82869924031280517,-0.52323371171951294,0.74772538932247889,0.4150839050613348,0.69308826247370492,0.37818016839983348,null,null,null,null,null,null,null,null,null,null,null,null,null,null,null,null,31,0.300898,0.35504599999999997,0.41579199999999999,0.45563100000000001]
[null,null,null,null,null,null,null,null,null,null,null,null,null,null,null,null,null,null,null,null,null,null,null,null,null,null,null,null,null,null,null,null,null,null,null,null,null,null,null,null,null,null,null,null,null,null,null,null,null,null,null,null,null,null,null,null,null,null,null,12,null,null,null,null,null,null,null,null,null,null,"",7.322108113364604,7,null,null,0,0,null,null,null,null,null,null,null,0,0,-1,0,0,0,0,null,null,null,null,null,null,null,null,null,null,null,null,null,null,null,null,null,null,null,null,32,0.295991,0.34937000000000001,0.409327,0.44869900000000001]
[null,null,null,null,null,null,null,null,null,null,null,null,null,null,null,null,null,null,null,null,null,null,null,null,null,null,null,null,null,null,null,null,null,null,null,null,null,null,null,null,null,null,null,null,null,null,null,null,null,null,null,null,null,null,null,null,null,null,null,13,null,null,null,null,null,null,null,null,null,null,"",7.322108113364604,7,null,null,0,0,null,null,null,null,null,null,null,null,null,null,null,9,null,null,null,null,null,null,null,null,null,null,null,null,null,null,null,null,null,null,null,null,null,null,33,0.29131600000000002,0.34395700000000001,0.40315299999999998,0.44207200000000002]
[null,null,null,null,null,null,null,null,null,null,null,null,null,null,null,null,null,null,null,null,null,null,null,null,null,null,null,null,null,null,null,null,null,null,null,null,null,null,null,null,null,null,null,null,null,null,null,null,null,null,null,null,null,null,null,null,null,null,null,14,null,null,null,null,null,null,null,null,null,null,"",7.322108113364604,7,null,null,0,0,null,null,null,null,null,null,null,null,null,null,null,"陸地",null,null,null,null,null,null,null,null,null,null,null,null,null,null,null,null,null,null,null,null,null,null,34,0.286856,0.33878799999999998,0.39724900000000002,0.435728]
[null,null,null,null,null,null,null,null,null,null,null,null,null,null,null,null,null,null,null,null,null,null,null,null,null,null,null,null,null,null,null,null,null,null,null,null,null,null,null,null,null,null,null,null,null,null,null,null,null,null,null,null,null,null,null,null,null,null,null,15,null,null,null,null,null,null,null,null,null,null,"",7.322108113364604,7,null,null,0,0,null,null,null,null,null,null,null,-0.28563496794891358,0,-9.7549840807914734E-2,0,-1,5.6755084991455082E-2,0.9067838191986084,0.65802130984943252,0.23715378201045109,0.53029351780061817,0.18068055928552548,null,null,null,null,null,null,null,null,null,null,null,null,null,null,null,null,35,0.28259400000000001,0.333845,0.391596,0.42964799999999997]
[null,null,null,null,null,null,null,null,null,null,null,null,null,null,null,null,null,null,null,null,null,null,null,null,null,null,null,null,null,null,null,null,null,null,null,null,null,null,null,null,null,null,null,null,null,null,null,null,null,null,null,null,null,null,null,null,null,null,null,16,null,null,null,null,null,null,null,null,null,null,"",7.322108113364604,7,null,null,0,0,null,null,null,null,null,null,null,0,0,0,0,-1,0,0,null,null,null,null,null,null,null,null,null,null,null,null,null,null,null,null,null,null,null,null,36,0.27851700000000001,0.32911099999999999,0.38617699999999999,0.42381400000000002]
[null,null,null,null,null,null,null,null,null,null,null,null,null,null,null,null,null,null,null,null,null,null,null,null,null,null,null,null,null,null,null,null,null,null,null,null,null,null,null,null,null,null,null,null,null,null,null,null,null,null,null,null,null,null,null,null,null,null,null,17,null,null,null,null,null,null,null,null,null,null,"",7.322108113364604,7,null,null,0,0,null,null,null,null,null,null,null,null,null,null,null,null,10,null,null,null,null,null,null,null,null,null,null,null,null,null,null,null,null,null,null,null,null,null,37,0.27461099999999999,0.324573,0.38097599999999998,0.418211]
[null,null,null,null,null,null,null,null,null,null,null,null,null,null,null,null,null,null,null,null,null,null,null,null,null,null,null,null,null,null,null,null,null,null,null,null,null,null,null,null,null,null,null,null,null,null,null,null,null,null,null,null,null,null,null,null,null,null,null,18,null,null,null,null,null,null,null,null,null,null,"",7.322108113364604,7,null,null,0,0,null,null,null,null,null,null,null,null,null,null,null,null,"沈水植物",null,null,null,null,null,null,null,null,null,null,null,null,null,null,null,null,null,null,null,null,null,38,0.27086399999999999,0.32021699999999997,0.37597900000000001,0.412823]
[null,null,null,null,null,null,null,null,null,null,null,null,null,null,null,null,null,null,null,null,null,null,null,null,null,null,null,null,null,null,null,null,null,null,null,null,null,null,null,null,null,null,null,null,null,null,null,null,null,null,null,null,null,null,null,null,null,null,null,19,null,null,null,null,null,null,null,null,null,null,"",7.322108113364604,7,null,null,0,0,null,null,null,null,null,null,null,-0.999,0,-1,0,-0.93194589591644283,0.20433482600616454,0.82960301637649536,0.74841542762935931,0.55582665552840782,0.61757764514384417,0.31708826510390348,null,null,null,null,null,null,null,null,null,null,null,null,null,null,null,null,39,0.26726699999999998,0.31603199999999998,0.37117299999999998,0.40763700000000003]
[null,null,null,null,null,null,null,null,null,null,null,null,null,null,null,null,null,null,null,null,null,null,null,null,null,null,null,null,null,null,null,null,null,null,null,null,null,null,null,null,null,null,null,null,null,null,null,null,null,null,null,null,null,null,null,null,null,null,null,20,null,null,null,null,null,null,null,null,null,null,"",7.322108113364604,7,null,null,0,0,null,null,null,null,null,null,null,0,0,0,0,0,1,0,null,null,null,null,null,null,null,null,null,null,null,null,null,null,null,null,null,null,null,null,40,0.26380900000000002,0.31200600000000001,0.36654599999999998,0.40264100000000003]
[null,null,null,null,null,null,null,null,null,null,null,null,null,null,null,null,null,null,null,null,null,null,null,null,null,null,null,null,null,null,null,null,null,null,null,null,null,null,null,null,null,null,null,null,null,null,null,null,null,null,null,null,null,null,null,null,null,null,null,21,null,null,null,null,null,null,null,null,null,null,"",7.322108113364604,7,null,null,0,0,null,null,null,null,null,null,null,null,null,null,null,null,11,null,null,null,null,null,null,null,null,null,null,null,null,null,null,null,null,null,null,null,null,null,41,0.26048199999999999,0.30813099999999999,0.36208699999999999,0.39782400000000001]
[null,null,null,null,null,null,null,null,null,null,null,null,null,null,null,null,null,null,null,null,null,null,null,null,null,null,null,null,null,null,null,null,null,null,null,null,null,null,null,null,null,null,null,null,null,null,null,null,null,null,null,null,null,null,null,null,null,null,null,22,null,null,null,null,null,null,null,null,null,null,"",7.322108113364604,7,null,null,0,0,null,null,null,null,null,null,null,null,null,null,null,null,"抽水植物",null,null,null,null,null,null,null,null,null,null,null,null,null,null,null,null,null,null,null,null,null,42,0.25727800000000001,0.304396,0.35778700000000002,0.39317400000000002]
[null,null,null,null,null,null,null,null,null,null,null,null,null,null,null,null,null,null,null,null,null,null,null,null,null,null,null,null,null,null,null,null,null,null,null,null,null,null,null,null,null,null,null,null,null,null,null,null,null,null,null,null,null,null,null,null,null,null,null,23,null,null,null,null,null,null,null,null,null,null,"",7.322108113364604,7,null,null,0,0,null,null,null,null,null,null,null,-0.68057296085357666,0,0.50361913442611694,0,0.32147682713104248,-0.15092422237396241,0.35736620426177979,0.57090798586154456,-6.5627158754216694E-2,0.28058192376569624,0.2104931501577878,null,null,null,null,null,null,null,null,null,null,null,null,null,null,null,null,43,0.254189,0.30079299999999998,0.35363600000000001,0.38868399999999997]
[null,null,null,null,null,null,null,null,null,null,null,null,null,null,null,null,null,null,null,null,null,null,null,null,null,null,null,null,null,null,null,null,null,null,null,null,null,null,null,null,null,null,null,null,null,null,null,null,null,null,null,null,null,null,null,null,null,null,null,24,null,null,null,null,null,null,null,null,null,null,"",7.322108113364604,7,null,null,0,0,null,null,null,null,null,null,null,0,0,0,0,0,-1,0,null,null,null,null,null,null,null,null,null,null,null,null,null,null,null,null,null,null,null,null,44,0.25120900000000002,0.297315,0.34962599999999999,0.38434299999999999]
[null,null,null,null,null,null,null,null,null,null,null,null,null,null,null,null,null,null,null,null,null,null,null,null,null,null,null,null,null,null,null,null,null,null,null,null,null,null,null,null,null,null,null,null,null,null,null,null,null,null,null,null,null,null,null,null,null,null,null,25,null,null,null,null,null,null,null,null,null,null,"",7.322108113364604,7,null,null,0,0,null,null,null,null,null,null,null,null,null,null,null,null,12,null,null,null,null,null,null,null,null,null,null,null,null,null,null,null,null,null,null,null,null,null,45,0.24833,0.29395500000000002,0.34575,0.38014399999999998]
[null,null,null,null,null,null,null,null,null,null,null,null,null,null,null,null,null,null,null,null,null,null,null,null,null,null,null,null,null,null,null,null,null,null,null,null,null,null,null,null,null,null,null,null,null,null,null,null,null,null,null,null,null,null,null,null,null,null,null,26,null,null,null,null,null,null,null,null,null,null,"",7.322108113364604,7,null,null,0,0,null,null,null,null,null,null,null,null,null,null,null,null,"垂下植物",null,null,null,null,null,null,null,null,null,null,null,null,null,null,null,null,null,null,null,null,null,46,0.24554899999999999,0.29070600000000002,0.341999,0.37608000000000003]
[null,null,null,null,null,null,null,null,null,null,null,null,null,null,null,null,null,null,null,null,null,null,null,null,null,null,null,null,null,null,null,null,null,null,null,null,null,null,null,null,null,null,null,null,null,null,null,null,null,null,null,null,null,null,null,null,null,null,null,27,null,null,null,null,null,null,null,null,null,null,"",7.322108113364604,7,null,null,0,0,null,null,null,null,null,null,null,0.17461170864105224,0,-0.20207622647285461,0,-0.18403370380401612,-0.73332800388336183,-0.30434766411781311,0.56476763551437714,0.11731120730307645,0.32558415124592366,-5.4289545462737593E-2,null,null,null,null,null,null,null,null,null,null,null,null,null,null,null,null,47,0.24285899999999999,0.28756300000000001,0.33836699999999997,0.37214199999999997]
[null,null,null,null,null,null,null,null,null,null,null,null,null,null,null,null,null,null,null,null,null,null,null,null,null,null,null,null,null,null,null,null,null,null,null,null,null,null,null,null,null,null,null,null,null,null,null,null,null,null,null,null,null,null,null,null,null,null,null,28,null,null,null,null,null,null,null,null,null,null,"",7.322108113364604,7,null,null,{"$f":"IF(COUNT(BI48:BK48)*COUNT(BL48:BR48)>0,1,0)","v":0},0,null,null,null,null,null,null,null,0,0,0,0,0,-1,0,null,null,null,null,null,null,null,null,null,null,null,null,null,null,null,null,null,null,null,null,48,0.240255,0.28451900000000002,0.33484799999999998,0.36832599999999999]
[null,null,null,null,null,null,null,null,null,null,null,null,null,null,null,null,null,null,null,null,null,null,null,null,null,null,null,null,null,null,null,null,null,null,null,null,null,null,null,null,null,null,null,null,null,null,null,null,null,null,null,null,null,null,null,null,null,null,null,29,null,null,null,null,null,null,null,null,null,null,"",7.322108113364604,7,null,null,{"$f":"IF(COUNT(BI49:BK49)*COUNT(BL49:BR49)>0,1,0)","v":0},0,null,null,null,null,null,null,null,null,null,null,null,null,14,null,null,null,null,null,null,null,null,null,null,null,null,null,null,null,null,null,null,null,null,null,49,0.237734,0.28156999999999999,0.33143699999999998,0.364624]
[null,null,null,null,null,null,null,null,null,null,null,null,null,null,null,null,null,null,null,null,null,null,null,null,null,null,null,null,null,null,null,null,null,null,null,null,null,null,null,null,null,null,null,null,null,null,null,null,null,null,null,null,null,null,null,null,null,null,null,30,null,null,null,null,null,null,null,null,null,null,"",7.322108113364604,7,null,null,0,0,null,null,null,null,null,null,null,null,null,null,null,null,"全植物",null,null,null,null,null,null,null,null,null,null,null,null,null,null,null,null,null,null,null,null,null,50,0.23529,0.27871099999999999,0.32812799999999998,0.36103099999999999]
[null,null,null,null,null,null,null,null,null,null,null,null,null,null,null,null,null,null,null,null,null,null,null,null,null,null,null,null,null,null,null,null,null,null,null,null,null,null,null,null,null,null,null,null,null,null,null,null,null,null,null,null,null,null,null,null,null,null,null,31,null,null,null,null,null,null,null,null,null,null,"",7.322108113364604,7,null,null,0,0,null,null,null,null,null,null,null,-0.77720761299133301,0,1,0,0.50245671272277836,-0.90487437112426761,-0.25508472323417664,0.57823109773804471,5.3502971726750927E-2,0.41182866461282014,4.0549500886968718E-3,null,null,null,null,null,null,null,null,null,null,null,null,null,null,null,null,51,0.23291999999999999,0.27593600000000001,0.32491599999999998,0.357543]
[null,null,null,null,null,null,null,null,null,null,null,null,null,null,null,null,null,null,null,null,null,null,null,null,null,null,null,null,null,null,null,null,null,null,null,null,null,null,null,null,null,null,null,null,null,null,null,null,null,null,null,null,null,null,null,null,null,null,null,32,null,null,null,null,null,null,null,null,null,null,"",7.322108113364604,7,null,null,0,0,null,null,null,null,null,null,null,0,0,0,0,0,-1,0,null,null,null,null,null,null,null,null,null,null,null,null,null,null,null,null,null,null,null,null,52,0.23061999999999999,0.27324300000000001,0.32179600000000003,0.354153]
[null,null,null,null,null,null,null,null,null,null,null,null,null,null,null,null,null,null,null,null,null,null,null,null,null,null,null,null,null,null,null,null,null,null,null,null,null,null,null,null,null,null,null,null,null,null,null,null,null,null,null,null,null,null,null,null,null,null,null,33,null,null,null,null,null,null,null,null,null,null,"",7.322108113364604,7,null,null,0,0,null,null,null,null,null,null,null,null,null,null,null,null,15,null,null,null,null,null,null,null,null,null,null,null,null,null,null,null,null,null,null,null,null,null,53,0.22838700000000001,0.27062799999999998,0.31876399999999999,0.35085699999999997]
[null,null,null,null,null,null,null,null,null,null,null,null,null,null,null,null,null,null,null,null,null,null,null,null,null,null,null,null,null,null,null,null,null,null,null,null,null,null,null,null,null,null,null,null,null,null,null,null,null,null,null,null,null,null,null,null,null,null,null,34,null,null,null,null,null,null,null,null,null,null,"",7.322108113364604,7,null,null,0,0,null,null,null,null,null,null,null,null,null,null,null,null,"全カバー",null,null,null,null,null,null,null,null,null,null,null,null,null,null,null,null,null,null,null,null,null,54,0.226217,0.26808599999999999,0.31581599999999999,0.34765200000000002]
[null,null,null,null,null,null,null,null,null,null,null,null,null,null,null,null,null,null,null,null,null,null,null,null,null,null,null,null,null,null,null,null,null,null,null,null,null,null,null,null,null,null,null,null,null,null,null,null,null,null,null,null,null,null,null,null,null,null,null,35,null,null,null,null,null,null,null,null,null,null,"",7.322108113364604,7,null,null,0,0,null,null,null,null,null,null,null,0.55807664394378664,0,-0.47915631532669067,0,0.60250105571746826,-7.440521430969238E-2,0.7744024395942688,0.57823109773804471,5.3502971726750927E-2,0.41182866461282019,4.0549500886968475E-3,null,null,null,null,null,null,null,null,null,null,null,null,null,null,null,null,55,0.224108,0.26561400000000002,0.312948,0.34453299999999998]
[null,null,null,null,null,null,null,null,null,null,null,null,null,null,null,null,null,null,null,null,null,null,null,null,null,null,null,null,null,null,null,null,null,null,null,null,null,null,null,null,null,null,null,null,null,null,null,null,null,null,null,null,null,null,null,null,null,null,null,36,null,null,null,null,null,null,null,null,null,null,"",7.322108113364604,7,null,null,0,0,null,null,null,null,null,null,null,0,0,0,0,0,-1,0,null,null,null,null,null,null,null,null,null,null,null,null,null,null,null,null,null,null,null,null,56,0.222057,0.26320900000000003,0.31015700000000002,0.34149600000000002]
[null,null,null,null,null,null,null,null,null,null,null,null,null,null,null,null,null,null,null,null,null,null,null,null,null,null,null,null,null,null,null,null,null,null,null,null,null,null,null,null,null,null,null,null,null,null,null,null,null,null,null,null,null,null,null,null,null,null,null,37,null,null,null,null,null,null,null,null,null,null,"",7.322108113364604,7,null,null,0,0,null,null,null,null,null,null,null,null,null,null,null,null,null,16,null,null,null,null,null,null,null,null,null,null,null,null,null,null,null,null,null,null,null,null,57,0.22006200000000001,0.26086900000000002,0.30743999999999999,0.33853800000000001]
[null,null,null,null,null,null,null,null,null,null,null,null,null,null,null,null,null,null,null,null,null,null,null,null,null,null,null,null,null,null,null,null,null,null,null,null,null,null,null,null,null,null,null,null,null,null,null,null,null,null,null,null,null,null,null,null,null,null,null,38,null,null,null,null,null,null,null,null,null,null,"",7.322108113364604,7,null,null,0,0,null,null,null,null,null,null,null,null,null,null,null,null,null,"石・礫",null,null,null,null,null,null,null,null,null,null,null,null,null,null,null,null,null,null,null,null,58,0.21811900000000001,0.25858900000000001,0.30479200000000001,0.33565499999999998]
[null,null,null,null,null,null,null,null,null,null,null,null,null,null,null,null,null,null,null,null,null,null,null,null,null,null,null,null,null,null,null,null,null,null,null,null,null,null,null,null,null,null,null,null,null,null,null,null,null,null,null,null,null,null,null,null,null,null,null,39,null,null,null,null,null,null,null,null,null,null,"",7.322108113364604,7,null,null,0,0,null,null,null,null,null,null,null,1,0,-1,0,-0.75112891349792477,-9.6028346351623467E-2,0.22077235579490662,0.66164616103623441,0.28751320240732947,0.43163109733529847,0.25073266647477838,null,null,null,null,null,null,null,null,null,null,null,null,null,null,null,null,59,0.216226,0.25636900000000001,0.30221100000000001,0.332845]
[null,null,null,null,null,null,null,null,null,null,null,null,null,null,null,null,null,null,null,null,null,null,null,null,null,null,null,null,null,null,null,null,null,null,null,null,null,null,null,null,null,null,null,null,null,null,null,null,null,null,null,null,null,null,null,null,null,null,null,40,null,null,null,null,null,null,null,null,null,null,"",7.322108113364604,7,null,null,0,0,null,null,null,null,null,null,null,0,0,0,0,0,0,1,null,null,null,null,null,null,null,null,null,null,null,null,null,null,null,null,null,null,null,null,60,0.21438299999999999,0.25420399999999999,0.29969499999999999,0.33010400000000001]
[null,null,null,null,null,null,null,null,null,null,null,null,null,null,null,null,null,null,null,null,null,null,null,null,null,null,null,null,null,null,null,null,null,null,null,null,null,null,null,null,null,null,null,null,null,null,null,null,null,null,null,null,null,null,null,null,null,null,null,41,null,null,null,null,null,null,null,null,null,null,{"$f":"IF(BX61=1,SUMPRODUCT(BL61:BR61,$BL$13:$BR$13),\"\")","v":""},{"$f":"SUMPRODUCT($BL$14:$BR$14,BL61:BR61)+$BS$14","v":7.322108113364604},{"$f":"ROUND(BT61,0)","v":7},null,null,{"$f":"IF(COUNT(BI61:BK61)*COUNT(BL61:BR61)>0,1,0)","v":0},{"$f":"IF(COUNT(BI61:BR61)>0,BH61,0)","v":0},null,null,null,null,null,null,null,null,null,null,null,null,null,17,null,null,null,null,null,null,null,null,null,null,null,null,null,null,null,null,null,null,null,null,70,0.198211,0.23519799999999999,0.27756199999999998,0.30595800000000001]
[null,null,null,null,null,null,null,null,null,null,null,null,null,null,null,null,null,null,null,null,null,null,null,null,null,null,null,null,null,null,null,null,null,null,null,null,null,null,null,null,null,null,null,null,null,null,null,null,null,null,null,null,null,null,null,null,null,null,null,42,null,null,null,null,null,null,null,null,null,null,"",7.322108113364604,7,null,null,0,0,null,null,null,null,null,null,null,null,null,null,null,null,null,"砂",null,null,null,null,null,null,null,null,null,null,null,null,null,null,null,null,null,null,null,null,80,0.18522,0.21990100000000001,0.25970100000000002,0.28643299999999999]
[null,null,null,null,null,null,null,null,null,null,null,null,null,null,null,null,null,null,null,null,null,null,null,null,null,null,null,null,null,null,null,null,null,null,null,null,null,null,null,null,null,null,null,null,null,null,null,null,null,null,null,null,null,null,null,null,null,null,null,43,null,null,null,null,null,null,null,null,null,null,"",7.322108113364604,7,null,null,0,0,null,null,null,null,null,null,null,0.31502546900842288,0,1,0,-1,0.42119169892120362,0.69212228059768677,0.6988568891988397,0.18902967964017367,0.80769715627265959,0.19641449928020466,null,null,null,null,null,null,null,null,null,null,null,null,null,null,null,null,90,0.17448900000000001,0.20724600000000001,0.244895,0.27022200000000002]
[null,null,null,null,null,null,null,null,null,null,null,null,null,null,null,null,null,null,null,null,null,null,null,null,null,null,null,null,null,null,null,null,null,null,null,null,null,null,null,null,null,null,null,null,null,null,null,null,null,null,null,null,null,null,null,null,null,null,null,44,null,null,null,null,null,null,null,null,null,null,{"$f":"IF(BX64=1,SUMPRODUCT(BL64:BR64,$BL$13:$BR$13),\"\")","v":""},7.322108113364604,7,null,null,0,0,null,null,null,null,null,null,null,0,0,0,0,0,0,1,null,null,null,null,null,null,null,null,null,null,null,null,null,null,null,null,null,null,null,null,100,0.16542999999999999,0.196551,0.23236200000000001,0.25648300000000002]
[null,null,null,null,null,null,null,null,null,null,null,null,null,null,null,null,null,null,null,null,null,null,null,null,null,null,null,null,null,null,null,null,null,null,null,null,null,null,null,null,null,null,null,null,null,null,null,null,null,null,null,null,null,null,null,null,null,null,null,45,null,null,null,null,null,null,null,null,null,null,"",7.322108113364604,7,null,null,0,0,null,null,null,null,null,null,null,null,null,null,null,null,null,18,null,null,null,null,null,null,null,null,null,null,null,null,null,null,null,null,null,null,null,null,150,0.13481599999999999,0.16033500000000001,0.189803,0.209726]
[null,null,null,null,null,null,null,null,null,null,null,null,null,null,null,null,null,null,null,null,null,null,null,null,null,null,null,null,null,null,null,null,null,null,null,null,null,null,null,null,null,null,null,null,null,null,null,null,null,null,null,null,null,null,null,null,null,null,null,46,null,null,null,null,null,null,null,null,null,null,"",7.322108113364604,7,null,null,0,0,null,null,null,null,null,null,null,null,null,null,null,null,null,"泥",null,null,null,null,null,null,null,null,null,null,null,null,null,null,null,null,null,null,null,null,200,0.116642,0.138789,0.164407,0.181758]
[null,null,null,null,null,null,null,null,null,null,null,null,null,null,null,null,null,null,null,null,null,null,null,null,null,null,null,null,null,null,null,null,null,null,null,null,null,null,null,null,null,null,null,null,null,null,null,null,null,null,null,null,null,null,null,null,null,null,null,47,null,null,null,null,null,null,null,null,null,null,"",7.322108113364604,7,null,null,0,0,null,null,null,null,null,null,null,0.39185639160614016,0,0.74228978157043457,0,-0.52514509863189696,0.29021101567413332,-0.43009403347969055,0.68847500247262461,0.2824907313053357,0.65333934735475463,0.1950199361756571,null,null,null,null,null,null,null,null,null,null,null,null,null,null,null,null,250,0.104268,0.124101,0.147067,0.16263900000000001]
[null,null,null,null,null,null,null,null,null,null,null,null,null,null,null,null,null,null,null,null,null,null,null,null,null,null,null,null,null,null,null,null,null,null,null,null,null,null,null,null,null,null,null,null,null,null,null,null,null,null,null,null,null,null,null,null,null,null,null,48,null,null,null,null,null,null,null,null,null,null,"",7.322108113364604,7,null,null,0,0,null,null,null,null,null,null,null,0,0,0,0,0,0,-1,null,null,null,null,null,null,null,null,null,null,null,null,null,null,null,null,null,null,null,null,300,9.5146999999999995E-2,0.11326700000000001,0.13426399999999999,0.14851]
[null,null,null,null,null,null,null,null,null,null,null,null,null,null,null,null,null,null,null,null,null,null,null,null,null,null,null,null,null,null,null,null,null,null,null,null,null,null,null,null,null,null,null,null,null,null,null,null,null,null,null,null,null,null,null,null,null,null,null,49,null,null,null,null,null,null,null,null,null,null,"",7.322108113364604,7,null,null,0,0,null,null,null,null,null,null,null,null,null,null,null,null,null,null,null,null,null,null,null,null,null,null,null,null,null,null,null,null,null,null,null,null,null,null,350,8.8065000000000004E-2,0.104851,0.124311,0.137521]
[null,null,null,null,null,null,null,null,null,null,null,null,null,null,null,null,null,null,null,null,null,null,null,null,null,null,null,null,null,null,null,null,null,null,null,null,null,null,null,null,null,null,null,null,null,null,null,null,null,null,null,null,null,null,null,null,null,null,null,50,null,null,null,null,null,null,null,null,null,null,"",7.322108113364604,7,null,null,0,0,null,null,null,null,null,null,null,null,null,null,null,null,null,null,null,null,null,null,null,null,null,null,null,null,null,null,null,null,null,null,null,null,null,null,400,8.2361000000000004E-2,9.8069000000000003E-2,0.116286,0.12865799999999999]
[null,null,null,null,null,null,null,null,null,null,null,null,null,null,null,null,null,null,null,null,null,null,null,null,null,null,null,null,null,null,null,null,null,null,null,null,null,null,null,null,null,null,null,null,null,null,null,null,null,null,null,null,null,null,null,null,null,null,null,51,null,null,null,null,null,null,null,null,null,null,"",7.322108113364604,7,null,null,0,0,null,null,null,null,null,null,null,0.77893305824829107,0,-1,0,0.14921746063232422,0.37480935859680176,8.9944563806056976E-2,0.5,0,0,0,null,null,null,null,null,null,null,null,null,null,null,null,null,null,null,null,450,7.7637999999999999E-2,9.2452999999999994E-2,0.109639,0.12131400000000001]
[null,null,null,null,null,null,null,null,null,null,null,null,null,null,null,null,null,null,null,null,null,null,null,null,null,null,null,null,null,null,null,null,null,null,null,null,null,null,null,null,null,null,null,null,null,null,null,null,null,null,null,null,null,null,null,null,null,null,null,52,null,null,null,null,null,null,null,null,null,null,"",7.322108113364604,7,null,null,0,0,null,null,null,null,null,null,null,{"$error":"#DIV/0!"},{"$error":"#DIV/0!"},{"$error":"#DIV/0!"},{"$error":"#DIV/0!"},{"$error":"#DIV/0!"},{"$error":"#DIV/0!"},{"$error":"#DIV/0!"},null,null,null,null,null,null,null,null,null,null,null,null,null,null,null,null,null,null,null,null,500,7.3645000000000002E-2,8.7703000000000003E-2,0.104015,0.11509999999999999]
[null,null,null,null,null,null,null,null,null,null,null,null,null,null,null,null,null,null,null,null,null,null,null,null,null,null,null,null,null,null,null,null,null,null,null,null,null,null,null,null,null,null,null,null,null,null,null,null,null,null,null,null,null,null,null,null,null,null,null,53,null,null,null,null,null,null,null,null,null,null,"",7.322108113364604,7,null,null,0,0,null,null,null,null,null,null,null,1,null,6,null,null,null,null,null,null,null,null,null,null,null,null,null,null,null,null,null,null,null,null,null,null,null,null,600,6.7214999999999997E-2,8.0054E-2,9.4955999999999999E-2,0.105086]
[null,null,null,null,null,null,null,null,null,null,null,null,null,null,null,null,null,null,null,null,null,null,null,null,null,null,null,null,null,null,null,null,null,null,null,null,null,null,null,null,null,null,null,null,null,null,null,null,null,null,null,null,null,null,null,null,null,null,null,54,null,null,null,null,null,null,null,null,null,null,"",7.322108113364604,7,null,null,0,0,null,null,null,null,null,null,null,"最小","最小^2","最大","最大^2",null,null,null,null,null,null,null,null,null,null,null,null,null,null,null,null,null,null,null,null,null,null,null,700,6.2220999999999999E-2,7.4109999999999995E-2,8.7914999999999993E-2,9.7299999999999998E-2]
[null,null,null,null,null,null,null,null,null,null,null,null,null,null,null,null,null,null,null,null,null,null,null,null,null,null,null,null,null,null,null,null,null,null,null,null,null,null,null,null,null,null,null,null,null,null,null,null,null,null,null,null,null,null,null,null,null,null,null,55,null,null,null,null,null,null,null,null,null,null,"",7.322108113364604,7,null,null,0,0,null,null,null,null,null,null,null,0.69442675072784432,0,-0.88583272695541382,0,0.69979601999999996,-0.74681920346789543,0.99838000535964966,0.81384845671741779,0.57655383489330925,0.70829241351415662,0.59824449189704054,null,null,null,null,null,null,null,null,null,null,null,null,null,null,null,null,800,5.8195999999999998E-2,6.9320000000000007E-2,8.2238000000000006E-2,9.1023000000000007E-2]
[null,null,null,null,null,null,null,null,null,null,null,null,null,null,null,null,null,null,null,null,null,null,null,null,null,null,null,null,null,null,null,null,null,null,null,null,null,null,null,null,null,null,null,null,null,null,null,null,null,null,null,null,null,null,null,null,null,null,null,56,null,null,null,null,null,null,null,null,null,null,"",7.322108113364604,7,null,null,0,0,null,null,null,null,null,null,null,0.78740025958206761,0,-0.21259974041793239,0,0,0,0,null,null,null,null,null,null,null,null,null,null,null,null,null,null,null,null,null,null,null,null,900,5.4863000000000002E-2,6.5352999999999994E-2,7.7535999999999994E-2,8.5821999999999996E-2]
[null,null,null,null,null,null,null,null,null,null,null,null,null,null,null,null,null,null,null,null,null,null,null,null,null,null,null,null,null,null,null,null,null,null,null,null,null,null,null,null,null,null,null,null,null,null,null,null,null,null,null,null,null,null,null,null,null,null,null,57,null,null,null,null,null,null,null,null,null,null,"",7.322108113364604,7,null,null,0,0,null,null,null,null,null,null,null,2,null,6,null,null,null,null,null,null,null,null,null,null,null,null,null,null,null,null,null,null,null,null,null,null,null,null,1000,5.2045000000000001E-2,6.1996999999999997E-2,7.3557999999999998E-2,8.1420999999999993E-2]
[null,null,null,null,null,null,null,null,null,null,null,null,null,null,null,null,null,null,null,null,null,null,null,null,null,null,null,null,null,null,null,null,null,null,null,null,null,null,null,null,null,null,null,null,null,null,null,null,null,null,null,null,null,null,null,null,null,null,null,58,null,null,null,null,null,null,null,null,null,null,"",7.322108113364604,7,null,null,0,0,null,null,null,null,null,null,null,"最大","最大^2","最大","最大^2",null,null,null,null,null,null,null,null,null,null,null,null,null,null,null,null,null,null,null,null,null,null,null,1500,4.2486000000000003E-2,5.0616000000000001E-2,6.0061999999999997E-2,6.6489000000000006E-2]
[null,null,null,null,null,null,null,null,null,null,null,null,null,null,null,null,null,null,null,null,null,null,null,null,null,null,null,null,null,null,null,null,null,null,null,null,null,null,null,null,null,null,null,null,null,null,null,null,null,null,null,null,null,null,null,null,null,null,null,59,null,null,null,null,null,null,null,null,null,null,"",7.322108113364604,7,null,null,0,0,null,null,null,null,null,null,null,-0.99999968000000006,0,-0.68798816204071045,0,-1.2283549916625936E-2,0.22708346806097415,-9.9990174931008369E-5,0.82751373299728725,0.6160705912902098,0.64240539491286552,0.70660641178064776,null,null,null,null,null,null,null,null,null,null,null,null,null,null,null,null,2000,3.6790999999999997E-2,4.3832000000000003E-2,5.2016E-2,5.7584999999999997E-2]
[null,null,null,null,null,null,null,null,null,null,null,null,null,null,null,null,null,null,null,null,null,null,null,null,null,null,null,null,null,null,null,null,null,null,null,null,null,null,null,null,null,null,null,null,null,null,null,null,null,null,null,null,null,null,null,null,null,null,null,60,null,null,null,null,null,null,null,null,null,null,"",7.322108113364604,7,null,null,0,0,null,null,null,null,null,null,null,-0.85966656130342911,0,-0.14033343869657094,0,0,0,0,null,null,null,null,null,null,null,null,null,null,null,null,null,null,null,null,null,null,null,null,2500,3.2904999999999997E-2,3.9204000000000003E-2,4.6524999999999997E-2,5.1507999999999998E-2]
[null,null,null,null,null,null,null,null,null,null,null,null,null,null,null,null,null,null,null,null,null,null,null,null,null,null,null,null,null,null,null,null,null,null,null,null,null,null,null,null,null,null,null,null,null,null,null,null,null,null,null,null,null,null,null,null,null,null,null,null,null,null,null,null,null,null,null,null,null,null,null,null,null,null,null,null,null,null,null,null,null,null,null,null,3,null,6,null,null,null,null,null,null,null,null,null,null,null,null,null,null,null,null,null,null,null,null,null,null,null,null,3000,3.0037000000000001E-2,3.5786999999999999E-2,4.2472000000000003E-2,4.7022000000000001E-2]
[null,null,null,null,null,null,null,null,null,null,null,null,null,null,null,null,null,null,null,null,null,null,null,null,null,null,null,null,null,null,null,null,null,null,null,null,null,null,null,null,null,null,null,null,null,null,null,null,null,null,null,null,null,null,null,null,null,null,null,null,null,null,null,null,null,null,null,null,null,null,null,null,null,null,null,null,null,null,null,null,null,null,null,null,"平均","平均^2","最大","最大^2",null,null,null,null,null,null,null,null,null,null,null,null,null,null,null,null,null,null,null,null,null,null,null,3500,2.7807999999999999E-2,3.3132000000000002E-2,3.9321000000000002E-2,4.3534000000000003E-2]
[null,null,null,null,null,null,null,null,null,null,null,null,null,null,null,null,null,null,null,null,null,null,null,null,null,null,null,null,null,null,null,null,null,null,null,null,null,null,null,null,null,null,null,null,null,null,null,null,null,null,null,null,null,null,null,null,null,null,null,null,null,null,null,null,null,null,null,null,null,null,null,null,null,null,null,null,null,null,null,null,null,null,null,null,0.22982304089910888,0,-0.9989999532699585,0,1,-0.38009145299999991,-1,0.8110505455980288,0.55067197079359231,0.73184027890824199,0.58379102388633819,null,null,null,null,null,null,null,null,null,null,null,null,null,null,null,null,4000,2.6010999999999999E-2,3.0991999999999999E-2,3.6782000000000002E-2,4.0723000000000002E-2]
[null,null,null,null,null,null,null,null,null,null,null,null,null,null,null,null,null,null,null,null,null,null,null,null,null,null,null,null,null,null,null,null,null,null,null,null,null,null,null,null,null,null,null,null,null,null,null,null,null,null,null,null,null,null,null,null,null,null,null,null,null,null,null,null,null,null,null,null,null,null,null,null,null,null,null,null,null,null,null,null,null,null,null,null,0.55190710830613088,0,-0.44809289169386907,0,0,0,0,null,null,null,null,null,null,null,null,null,null,null,null,null,null,null,null,null,null,null,null,4500,2.4523E-2,2.9218999999999998E-2,3.4678E-2,3.8394999999999999E-2]
[null,null,null,null,null,null,null,null,null,null,null,null,null,null,null,null,null,null,null,null,null,null,null,null,null,null,null,null,null,null,null,null,null,null,null,null,null,null,null,null,null,null,null,null,null,null,null,null,null,null,null,null,null,null,null,null,null,null,null,null,null,null,null,null,null,null,null,null,null,null,null,null,null,null,null,null,null,null,null,null,null,null,null,null,null,null,6,null,9,null,null,null,null,null,null,null,null,null,null,null,null,null,null,null,null,null,null,null,null,null,null,5000,2.3264E-2,2.7720000000000002E-2,3.2898999999999998E-2,3.6424999999999999E-2]
[null,null,null,null,null,null,null,null,null,null,null,null,null,null,null,null,null,null,null,null,null,null,null,null,null,null,null,null,null,null,null,null,null,null,null,null,null,null,null,null,null,null,null,null,null,null,null,null,null,null,null,null,null,null,null,null,null,null,null,null,null,null,null,null,null,null,null,null,null,null,null,null,null,null,null,null,null,null,null,null,null,null,null,null,null,null,"最大","最大^2","陸地",null,null,null,null,null,null,null,null,null,null,null,null,null,null,null,null,null,null,null,null,null,null,6000,2.1236999999999999E-2,2.5304E-2,3.0033000000000001E-2,3.3251999999999997E-2]
[null,null,null,null,null,null,null,null,null,null,null,null,null,null,null,null,null,null,null,null,null,null,null,null,null,null,null,null,null,null,null,null,null,null,null,null,null,null,null,null,null,null,null,null,null,null,null,null,null,null,null,null,null,null,null,null,null,null,null,null,null,null,null,null,null,null,null,null,null,null,null,null,null,null,null,null,null,null,null,null,null,null,null,null,-0.99000300000000008,0,-0.67129027843475342,0,0.99758936300000012,-1,-0.32769006490707397,0.85523011194098997,0.66545115673891619,0.69716846789610365,0.7687610470109203,null,null,null,null,null,null,null,null,null,null,null,null,null,null,null,null,7000,1.9661000000000001E-2,2.3427E-2,2.7805E-2,3.0785E-2]
[null,null,null,null,null,null,null,null,null,null,null,null,null,null,null,null,null,null,null,null,null,null,null,null,null,null,null,null,null,null,null,null,null,null,null,null,null,null,null,null,null,null,null,null,null,null,null,null,null,null,null,null,null,null,null,null,null,null,null,null,null,null,null,null,null,null,null,null,null,null,null,null,null,null,null,null,null,null,null,null,null,null,null,null,0,0,-0.1965289612352179,0,0.8034710387647821,0,0,null,null,null,null,null,null,null,null,null,null,null,null,null,null,null,null,null,null,null,null,8000,1.8391000000000001E-2,2.1913999999999999E-2,2.6009000000000001E-2,2.8797E-2]
[null,null,null,null,null,null,null,null,null,null,null,null,null,null,null,null,null,null,null,null,null,null,null,null,null,null,null,null,null,null,null,null,null,null,null,null,null,null,null,null,null,null,null,null,null,null,null,null,null,null,null,null,null,null,null,null,null,null,null,null,null,null,null,null,null,null,null,null,null,null,null,null,null,null,null,null,null,null,null,null,null,null,null,null,null,null,6,null,null,10,null,null,null,null,null,null,null,null,null,null,null,null,null,null,null,null,null,null,null,null,null,9000,1.7339E-2,2.0660000000000001E-2,2.4521999999999999E-2,2.7150000000000001E-2]
[null,null,null,null,null,null,null,null,null,null,null,null,null,null,null,null,null,null,null,null,null,null,null,null,null,null,null,null,null,null,null,null,null,null,null,null,null,null,null,null,null,null,null,null,null,null,null,null,null,null,null,null,null,null,null,null,null,null,null,null,null,null,null,null,null,null,null,null,null,null,null,null,null,null,null,null,null,null,null,null,null,null,null,null,null,null,"最大","最大^2",null,"沈水植物",null,null,null,null,null,null,null,null,null,null,null,null,null,null,null,null,null,null,null,null,null,10000,1.6448999999999998E-2,1.9599999999999999E-2,2.3262999999999999E-2,2.5756999999999999E-2]
[null,null,null,null,null,null,null,null,null,null,null,null,null,null,null,null,null,null,null,null,null,null,null,null,null,null,null,null,null,null,null,null,null,null,null,null,null,null,null,null,null,null,null,null,null,null,null,null,null,null,null,null,null,null,null,null,null,null,null,null,null,null,null,null,null,null,null,null,null,null,null,null,null,null,null,null,null,null,null,null,null,null,null,null,-0.79992001000000013,0,-0.11937941610813141,0,0.27424388923345944,0.99969600000000003,-0.99998998641967773,0.81547277240588345,0.58525403360873363,0.74784333139569059,0.55973926943087615,null,null,null,null,null,null,null,null,null,null,null,null,null,null,null,null,100000,5.202E-3,6.1980000000000004E-3,7.3569999999999998E-3,8.1449999999999995E-3]
[null,null,null,null,null,null,null,null,null,null,null,null,null,null,null,null,null,null,null,null,null,null,null,null,null,null,null,null,null,null,null,null,null,null,null,null,null,null,null,null,null,null,null,null,null,null,null,null,null,null,null,null,null,null,null,null,null,null,null,null,null,null,null,null,null,null,null,null,null,null,null,null,null,null,null,null,null,null,null,null,null,null,null,null,0,0,-3.9127437944461753E-3,0,0,0.99608725620555383,0,null,null,null,null,null,null,null,null,null,null,null,null,null,null,null,null,null,null,null,null,1000000,1.645E-3,1.9599999999999999E-3,2.3259999999999999E-3,2.5760000000000002E-3]
[null,null,null,null,null,null,null,null,null,null,null,null,null,null,null,null,null,null,null,null,null,null,null,null,null,null,null,null,null,null,null,null,null,null,null,null,null,null,null,null,null,null,null,null,null,null,null,null,null,null,null,null,null,null,null,null,null,null,null,null,null,null,null,null,null,null,null,null,null,null,null,null,null,null,null,null,null,null,null,null,null,null,null,null,null,null,6,null,null,11,null,null,null,null,null,null,null,null,null,null,null,null,null,null,null,null,null,null,null,null,null,10000000,5.1999999999999995E-4,6.2E-4,7.36E-4,8.1499999999999997E-4]
[null,null,null,null,null,null,null,null,null,null,null,null,null,null,null,null,null,null,null,null,null,null,null,null,null,null,null,null,null,null,null,null,null,null,null,null,null,null,null,null,null,null,null,null,null,null,null,null,null,null,null,null,null,null,null,null,null,null,null,null,null,null,null,null,null,null,null,null,null,null,null,null,null,null,null,null,null,null,null,null,null,null,null,null,null,null,"最大","最大^2",null,"抽水植物",null,null,null,null,null,null,null,null,null,null,null,null,null,null,null,null,null,null,null,null,null,100000000,1.64E-4,1.9599999999999999E-4,2.33E-4,2.5799999999999998E-4]
[null,null,null,null,null,null,null,null,null,null,null,null,null,null,null,null,null,null,null,null,null,null,null,null,null,null,null,null,null,null,null,null,null,null,null,null,null,null,null,null,null,null,null,null,null,null,null,null,null,null,null,null,null,null,null,null,null,null,null,null,null,null,null,null,null,null,null,null,null,null,null,null,null,null,null,null,null,null,null,null,null,null,null,null,0.33341692113513183,0,-8.3705991506576538E-2,0,-0.5978533000335694,0.25586349559899907,-0.97019803524017334,0.86253937294648653,0.77491672841013792,0.77078459761383011,0.62953491165495123,null,null,null,null,null,null,null,null,null,null,null,null,null,null,null,null,1000000000,5.1999999999999997E-5,6.2000000000000003E-5,7.3999999999999996E-5,8.1000000000000004E-5]
[null,null,null,null,null,null,null,null,null,null,null,null,null,null,null,null,null,null,null,null,null,null,null,null,null,null,null,null,null,null,null,null,null,null,null,null,null,null,null,null,null,null,null,null,null,null,null,null,null,null,null,null,null,null,null,null,null,null,null,null,null,null,null,null,null,null,null,null,null,null,null,null,null,null,null,null,null,null,null,null,null,null,null,null,0,0,-5.315738144663959E-2,0,0,0.94684261855336038,0,null,null,null,null,null,null,null,null,null,null,null,null,null,null,null,null,null,null,null,null,10000000000,1.5999999999999999E-5,2.0000000000000002E-5,2.3E-5,2.5999999999999998E-5]
[null,null,null,null,null,null,null,null,null,null,null,null,null,null,null,null,null,null,null,null,null,null,null,null,null,null,null,null,null,null,null,null,null,null,null,null,null,null,null,null,null,null,null,null,null,null,null,null,null,null,null,null,null,null,null,null,null,null,null,null,null,null,null,null,null,null,null,null,null,null,null,null,null,null,null,null,null,null,null,null,null,null,null,null,null,null,6,null,null,12]
[null,null,null,null,null,null,null,null,null,null,null,null,null,null,null,null,null,null,null,null,null,null,null,null,null,null,null,null,null,null,null,null,null,null,null,null,null,null,null,null,null,null,null,null,null,null,null,null,null,null,null,null,null,null,null,null,null,null,null,null,null,null,null,null,null,null,null,null,null,null,null,null,null,null,null,null,null,null,null,null,null,null,null,null,null,null,"最大","最大^2",null,"垂下植物"]
[null,null,null,null,null,null,null,null,null,null,null,null,null,null,null,null,null,null,null,null,null,null,null,null,null,null,null,null,null,null,null,null,null,null,null,null,null,null,null,null,null,null,null,null,null,null,null,null,null,null,null,null,null,null,null,null,null,null,null,null,null,null,null,null,null,null,null,null,null,null,null,null,null,null,null,null,null,null,null,null,null,null,null,null,-0.75873717646514904,0,-0.56818574666976929,0,-1,-0.1660007336883545,0.73102432489395142,0.81340448349907679,0.55537412666960917,0.7569947277041531,0.56805804662069836]
[null,null,null,null,null,null,null,null,null,null,null,null,null,null,null,null,null,null,null,null,null,null,null,null,null,null,null,null,null,null,null,null,null,null,null,null,null,null,null,null,null,null,null,null,null,null,null,null,null,null,null,null,null,null,null,null,null,null,null,null,null,null,null,null,null,null,null,null,null,null,null,null,null,null,null,null,null,null,null,null,null,null,null,null,0,0,-0.60209509902978076,0,0,-0.39790490097021936,0]
[null,null,null,null,null,null,null,null,null,null,null,null,null,null,null,null,null,null,null,null,null,null,null,null,null,null,null,null,null,null,null,null,null,null,null,null,null,null,null,null,null,null,null,null,null,null,null,null,null,null,null,null,null,null,null,null,null,null,null,null,null,null,null,null,null,null,null,null,null,null,null,null,null,null,null,null,null,null,null,null,null,null,null,null,null,null,6,null,null,14]
[null,null,null,null,null,null,null,null,null,null,null,null,null,null,null,null,null,null,null,null,null,null,null,null,null,null,null,null,null,null,null,null,null,null,null,null,null,null,null,null,null,null,null,null,null,null,null,null,null,null,null,null,null,null,null,null,null,null,null,null,null,null,null,null,null,null,null,null,null,null,null,null,null,null,null,null,null,null,null,null,null,null,null,null,null,null,"最大","最大^2",null,"全植物"]
[null,null,null,null,null,null,null,null,null,null,null,null,null,null,null,null,null,null,null,null,null,null,null,null,null,null,null,null,null,null,null,null,null,null,null,null,null,null,null,null,null,null,null,null,null,null,null,null,null,null,null,null,null,null,null,null,null,null,null,null,null,null,null,null,null,null,null,null,null,null,null,null,null,null,null,null,null,null,null,null,null,null,null,null,0.69989995400000005,0,-1,0,0.61498000000000008,0.15139095189007568,-0.53591424226760864,0.81147430312376279,0.55709227085365254,0.71576471924982232,0.59598882863910196]
[null,null,null,null,null,null,null,null,null,null,null,null,null,null,null,null,null,null,null,null,null,null,null,null,null,null,null,null,null,null,null,null,null,null,null,null,null,null,null,null,null,null,null,null,null,null,null,null,null,null,null,null,null,null,null,null,null,null,null,null,null,null,null,null,null,null,null,null,null,null,null,null,null,null,null,null,null,null,null,null,null,null,null,null,0,0,-0.73369370533705203,0,0,0.26630629466294797,0]
[null,null,null,null,null,null,null,null,null,null,null,null,null,null,null,null,null,null,null,null,null,null,null,null,null,null,null,null,null,null,null,null,null,null,null,null,null,null,null,null,null,null,null,null,null,null,null,null,null,null,null,null,null,null,null,null,null,null,null,null,null,null,null,null,null,null,null,null,null,null,null,null,null,null,null,null,null,null,null,null,null,null,null,null,null,null,6,null,null,15]
[null,null,null,null,null,null,null,null,null,null,null,null,null,null,null,null,null,null,null,null,null,null,null,null,null,null,null,null,null,null,null,null,null,null,null,null,null,null,null,null,null,null,null,null,null,null,null,null,null,null,null,null,null,null,null,null,null,null,null,null,null,null,null,null,null,null,null,null,null,null,null,null,null,null,null,null,null,null,null,null,null,null,null,null,null,null,"最大","最大^2",null,"全カバー"]
[null,null,null,null,null,null,null,null,null,null,null,null,null,null,null,null,null,null,null,null,null,null,null,null,null,null,null,null,null,null,null,null,null,null,null,null,null,null,null,null,null,null,null,null,null,null,null,null,null,null,null,null,null,null,null,null,null,null,null,null,null,null,null,null,null,null,null,null,null,null,null,null,null,null,null,null,null,null,null,null,null,null,null,null,0.6,0,-0.99696999788284302,0,0.62490966305694584,0.15093812182305907,-0.8068314790725708,0.81147430312504287,0.55709248745743034,0.71576413762571833,0.59598919366710879]
[null,null,null,null,null,null,null,null,null,null,null,null,null,null,null,null,null,null,null,null,null,null,null,null,null,null,null,null,null,null,null,null,null,null,null,null,null,null,null,null,null,null,null,null,null,null,null,null,null,null,null,null,null,null,null,null,null,null,null,null,null,null,null,null,null,null,null,null,null,null,null,null,null,null,null,null,null,null,null,null,null,null,null,null,0,0,-0.73368608728038653,0,0,0.26631391271961352,0]
[null,null,null,null,null,null,null,null,null,null,null,null,null,null,null,null,null,null,null,null,null,null,null,null,null,null,null,null,null,null,null,null,null,null,null,null,null,null,null,null,null,null,null,null,null,null,null,null,null,null,null,null,null,null,null,null,null,null,null,null,null,null,null,null,null,null,null,null,null,null,null,null,null,null,null,null,null,null,null,null,null,null,null,null,null,null,6,null,null,null,16]
[null,null,null,null,null,null,null,null,null,null,null,null,null,null,null,null,null,null,null,null,null,null,null,null,null,null,null,null,null,null,null,null,null,null,null,null,null,null,null,null,null,null,null,null,null,null,null,null,null,null,null,null,null,null,null,null,null,null,null,null,null,null,null,null,null,null,null,null,null,null,null,null,null,null,null,null,null,null,null,null,null,null,null,null,null,null,"最大","最大^2",null,null,"石・礫"]
[null,null,null,null,null,null,null,null,null,null,null,null,null,null,null,null,null,null,null,null,null,null,null,null,null,null,null,null,null,null,null,null,null,null,null,null,null,null,null,null,null,null,null,null,null,null,null,null,null,null,null,null,null,null,null,null,null,null,null,null,null,null,null,null,null,null,null,null,null,null,null,null,null,null,null,null,null,null,null,null,null,null,null,null,0.86899997200000001,0,-0.32040086388587952,0,0.77990347999999998,-0.36158725673815922,-1.4440921135246754E-2,0.81095249246659384,0.55067219078674323,0.7279921992484194,0.58705056476440098]
[null,null,null,null,null,null,null,null,null,null,null,null,null,null,null,null,null,null,null,null,null,null,null,null,null,null,null,null,null,null,null,null,null,null,null,null,null,null,null,null,null,null,null,null,null,null,null,null,null,null,null,null,null,null,null,null,null,null,null,null,null,null,null,null,null,null,null,null,null,null,null,null,null,null,null,null,null,null,null,null,null,null,null,null,0,0,-0.9191802196771639,0,0,0,-8.0819780322836099E-2]
[null,null,null,null,null,null,null,null,null,null,null,null,null,null,null,null,null,null,null,null,null,null,null,null,null,null,null,null,null,null,null,null,null,null,null,null,null,null,null,null,null,null,null,null,null,null,null,null,null,null,null,null,null,null,null,null,null,null,null,null,null,null,null,null,null,null,null,null,null,null,null,null,null,null,null,null,null,null,null,null,null,null,null,null,null,null,6,null,null,null,17]
[null,null,null,null,null,null,null,null,null,null,null,null,null,null,null,null,null,null,null,null,null,null,null,null,null,null,null,null,null,null,null,null,null,null,null,null,null,null,null,null,null,null,null,null,null,null,null,null,null,null,null,null,null,null,null,null,null,null,null,null,null,null,null,null,null,null,null,null,null,null,null,null,null,null,null,null,null,null,null,null,null,null,null,null,null,null,"最大","最大^2",null,null,"砂"]
[null,null,null,null,null,null,null,null,null,null,null,null,null,null,null,null,null,null,null,null,null,null,null,null,null,null,null,null,null,null,null,null,null,null,null,null,null,null,null,null,null,null,null,null,null,null,null,null,null,null,null,null,null,null,null,null,null,null,null,null,null,null,null,null,null,null,null,null,null,null,null,null,null,null,null,null,null,null,null,null,null,null,null,null,-9.8000000000000084E-3,0,-0.90682756900787354,0,0.48609902443176289,0.9978980999999999,-0.25723302364349365,0.81158835322092648,0.56685388170328643,0.69927240332883644,0.60340383429343614]
[null,null,null,null,null,null,null,null,null,null,null,null,null,null,null,null,null,null,null,null,null,null,null,null,null,null,null,null,null,null,null,null,null,null,null,null,null,null,null,null,null,null,null,null,null,null,null,null,null,null,null,null,null,null,null,null,null,null,null,null,null,null,null,null,null,null,null,null,null,null,null,null,null,null,null,null,null,null,null,null,null,null,null,null,0,0,-0.51892825806570519,0,0,0,-0.48107174193429469]
[null,null,null,null,null,null,null,null,null,null,null,null,null,null,null,null,null,null,null,null,null,null,null,null,null,null,null,null,null,null,null,null,null,null,null,null,null,null,null,null,null,null,null,null,null,null,null,null,null,null,null,null,null,null,null,null,null,null,null,null,null,null,null,null,null,null,null,null,null,null,null,null,null,null,null,null,null,null,null,null,null,null,null,null,null,null,6,null,null,null,18]
[null,null,null,null,null,null,null,null,null,null,null,null,null,null,null,null,null,null,null,null,null,null,null,null,null,null,null,null,null,null,null,null,null,null,null,null,null,null,null,null,null,null,null,null,null,null,null,null,null,null,null,null,null,null,null,null,null,null,null,null,null,null,null,null,null,null,null,null,null,null,null,null,null,null,null,null,null,null,null,null,null,null,null,null,null,null,"最大","最大^2",null,null,"泥"]
[null,null,null,null,null,null,null,null,null,null,null,null,null,null,null,null,null,null,null,null,null,null,null,null,null,null,null,null,null,null,null,null,null,null,null,null,null,null,null,null,null,null,null,null,null,null,null,null,null,null,null,null,null,null,null,null,null,null,null,null,null,null,null,null,null,null,null,null,null,null,null,null,null,null,null,null,null,null,null,null,null,null,null,null,1,0,-0.89057010412216187,0,-1,-0.87602999799999981,-6.0390178114175797E-3,0.81089411572320391,0.5503559482593875,0.73008039716768625,0.58492834891214973]
[null,null,null,null,null,null,null,null,null,null,null,null,null,null,null,null,null,null,null,null,null,null,null,null,null,null,null,null,null,null,null,null,null,null,null,null,null,null,null,null,null,null,null,null,null,null,null,null,null,null,null,null,null,null,null,null,null,null,null,null,null,null,null,null,null,null,null,null,null,null,null,null,null,null,null,null,null,null,null,null,null,null,null,null,0,0,-0.99036397685998234,0,0,0,-9.6360231400176456E-3]
[null,null,null,null,null,null,null,null,null,null,null,null,null,null,null,null,null,null,null,null,null,null,null,null,null,null,null,null,null,null,null,null,null,null,null,null,null,null,null,null,null,null,null,null,null,null,null,null,null,null,null,null,null,null,null,null,null,null,null,null,null,null,null,null,null,null,null,null,null,null,null,null,null,null,null,null,null,null,null,null,null,null,null,null,null,null,6]
[null,null,null,null,null,null,null,null,null,null,null,null,null,null,null,null,null,null,null,null,null,null,null,null,null,null,null,null,null,null,null,null,null,null,null,null,null,null,null,null,null,null,null,null,null,null,null,null,null,null,null,null,null,null,null,null,null,null,null,null,null,null,null,null,null,null,null,null,null,null,null,null,null,null,null,null,null,null,null,null,null,null,null,null,null,null,"最大","最大^2"]
[null,null,null,null,null,null,null,null,null,null,null,null,null,null,null,null,null,null,null,null,null,null,null,null,null,null,null,null,null,null,null,null,null,null,null,null,null,null,null,null,null,null,null,null,null,null,null,null,null,null,null,null,null,null,null,null,null,null,null,null,null,null,null,null,null,null,null,null,null,null,null,null,null,null,null,null,null,null,null,null,null,null,null,null,-0.49714486327362062,0,-0.8435860276222229,0,-1.2161861392517088E-2,0.28652962703704837,-0.27104628086090088,0.81089192321126347,0.55059382297827753,0.72907929758407519,0.58567841870522741]
[null,null,null,null,null,null,null,null,null,null,null,null,null,null,null,null,null,null,null,null,null,null,null,null,null,null,null,null,null,null,null,null,null,null,null,null,null,null,null,null,null,null,null,null,null,null,null,null,null,null,null,null,null,null,null,null,null,null,null,null,null,null,null,null,null,null,null,null,null,null,null,null,null,null,null,null,null,null,null,null,null,null,null,null,0,0,-1,0,0,0,0]
[null,null,null,null,null,null,null,null,null,null,null,null,null,null,null,null,null,null,null,null,null,null,null,null,null,null,null,null,null,null,null,null,null,null,null,null,null,null,null,null,null,null,null,null,null,null,null,null,null,null,null,null,null,null,null,null,null,null,null,null,null,null,null,null,null,null,null,null,null,null,null,null,null,null,null,null,null,null,null,null,null,null,null,null,1,null,6,null,null,11]
[null,null,null,null,null,null,null,null,null,null,null,null,null,null,null,null,null,null,null,null,null,null,null,null,null,null,null,null,null,null,null,null,null,null,null,null,null,null,null,null,null,null,null,null,null,null,null,null,null,null,null,null,null,null,null,null,null,null,null,null,null,null,null,null,null,null,null,null,null,null,null,null,null,null,null,null,null,null,null,null,null,null,null,null,"最小","最小^2","最大","最大^2",null,"抽水植物"]
[null,null,null,null,null,null,null,null,null,null,null,null,null,null,null,null,null,null,null,null,null,null,null,null,null,null,null,null,null,null,null,null,null,null,null,null,null,null,null,null,null,null,null,null,null,null,null,null,null,null,null,null,null,null,null,null,null,null,null,null,null,null,null,null,null,null,null,null,null,null,null,null,null,null,null,null,null,null,null,null,null,null,null,null,-0.1595226268790283,0,-0.31838902831077576,0,-0.99979960000000001,0.99649775200000024,1,0.8653095873019645,0.77400879012606083,0.79603747947230319,0.62181125421342309]
[null,null,null,null,null,null,null,null,null,null,null,null,null,null,null,null,null,null,null,null,null,null,null,null,null,null,null,null,null,null,null,null,null,null,null,null,null,null,null,null,null,null,null,null,null,null,null,null,null,null,null,null,null,null,null,null,null,null,null,null,null,null,null,null,null,null,null,null,null,null,null,null,null,null,null,null,null,null,null,null,null,null,null,null,-0.1095626383322884,0,-4.6284990635001806E-2,0,0,0.84415237103270979,0]
[null,null,null,null,null,null,null,null,null,null,null,null,null,null,null,null,null,null,null,null,null,null,null,null,null,null,null,null,null,null,null,null,null,null,null,null,null,null,null,null,null,null,null,null,null,null,null,null,null,null,null,null,null,null,null,null,null,null,null,null,null,null,null,null,null,null,null,null,null,null,null,null,null,null,null,null,null,null,null,null,null,null,null,null,2,null,6,null,null,11]
[null,null,null,null,null,null,null,null,null,null,null,null,null,null,null,null,null,null,null,null,null,null,null,null,null,null,null,null,null,null,null,null,null,null,null,null,null,null,null,null,null,null,null,null,null,null,null,null,null,null,null,null,null,null,null,null,null,null,null,null,null,null,null,null,null,null,null,null,null,null,null,null,null,null,null,null,null,null,null,null,null,null,null,null,"最大","最大^2","最大","最大^2",null,"抽水植物"]
[null,null,null,null,null,null,null,null,null,null,null,null,null,null,null,null,null,null,null,null,null,null,null,null,null,null,null,null,null,null,null,null,null,null,null,null,null,null,null,null,null,null,null,null,null,null,null,null,null,null,null,null,null,null,null,null,null,null,null,null,null,null,null,null,null,null,null,null,null,null,null,null,null,null,null,null,null,null,null,null,null,null,null,null,-0.81891961300000005,0,-0.51646387577056885,0,0.18567336495947251,1,1,0.87963136122692176,0.82510995446103519,0.65186950210975481,0.80080871079074001]
[null,null,null,null,null,null,null,null,null,null,null,null,null,null,null,null,null,null,null,null,null,null,null,null,null,null,null,null,null,null,null,null,null,null,null,null,null,null,null,null,null,null,null,null,null,null,null,null,null,null,null,null,null,null,null,null,null,null,null,null,null,null,null,null,null,null,null,null,null,null,null,null,null,null,null,null,null,null,null,null,null,null,null,null,-0.35235781265023025,0,-5.2726945278690512E-2,0,0,0.59491524207107915,0]
[null,null,null,null,null,null,null,null,null,null,null,null,null,null,null,null,null,null,null,null,null,null,null,null,null,null,null,null,null,null,null,null,null,null,null,null,null,null,null,null,null,null,null,null,null,null,null,null,null,null,null,null,null,null,null,null,null,null,null,null,null,null,null,null,null,null,null,null,null,null,null,null,null,null,null,null,null,null,null,null,null,null,null,null,3,null,6,null,null,11]
[null,null,null,null,null,null,null,null,null,null,null,null,null,null,null,null,null,null,null,null,null,null,null,null,null,null,null,null,null,null,null,null,null,null,null,null,null,null,null,null,null,null,null,null,null,null,null,null,null,null,null,null,null,null,null,null,null,null,null,null,null,null,null,null,null,null,null,null,null,null,null,null,null,null,null,null,null,null,null,null,null,null,null,null,"平均","平均^2","最大","最大^2",null,"抽水植物"]
[null,null,null,null,null,null,null,null,null,null,null,null,null,null,null,null,null,null,null,null,null,null,null,null,null,null,null,null,null,null,null,null,null,null,null,null,null,null,null,null,null,null,null,null,null,null,null,null,null,null,null,null,null,null,null,null,null,null,null,null,null,null,null,null,null,null,null,null,null,null,null,null,null,null,null,null,null,null,null,null,null,null,null,null,-0.25474009198822034,0,-0.34029930830001831,0,0.80999501000000007,0.99999530000000003,1,0.8667626619201465,0.79429014340589033,0.76226817865140073,0.64401764946358764]
[null,null,null,null,null,null,null,null,null,null,null,null,null,null,null,null,null,null,null,null,null,null,null,null,null,null,null,null,null,null,null,null,null,null,null,null,null,null,null,null,null,null,null,null,null,null,null,null,null,null,null,null,null,null,null,null,null,null,null,null,null,null,null,null,null,null,null,null,null,null,null,null,null,null,null,null,null,null,null,null,null,null,null,null,-0.18108975700642008,0,-4.518432686575713E-2,0,0,0.77372591612782271,0]
[null,null,null,null,null,null,null,null,null,null,null,null,null,null,null,null,null,null,null,null,null,null,null,null,null,null,null,null,null,null,null,null,null,null,null,null,null,null,null,null,null,null,null,null,null,null,null,null,null,null,null,null,null,null,null,null,null,null,null,null,null,null,null,null,null,null,null,null,null,null,null,null,null,null,null,null,null,null,null,null,null,null,null,null,null,null,6,null,9,11]
[null,null,null,null,null,null,null,null,null,null,null,null,null,null,null,null,null,null,null,null,null,null,null,null,null,null,null,null,null,null,null,null,null,null,null,null,null,null,null,null,null,null,null,null,null,null,null,null,null,null,null,null,null,null,null,null,null,null,null,null,null,null,null,null,null,null,null,null,null,null,null,null,null,null,null,null,null,null,null,null,null,null,null,null,null,null,"最大","最大^2","陸地","抽水植物"]
[null,null,null,null,null,null,null,null,null,null,null,null,null,null,null,null,null,null,null,null,null,null,null,null,null,null,null,null,null,null,null,null,null,null,null,null,null,null,null,null,null,null,null,null,null,null,null,null,null,null,null,null,null,null,null,null,null,null,null,null,null,null,null,null,null,null,null,null,null,null,null,null,null,null,null,null,null,null,null,null,null,null,null,null,0.99999990000000005,0,-0.44260844588279724,0,0.44730816134887696,0.85619600499999993,-0.99605000019073486,0.88898775565537158,0.82319071913512532,0.74832972580623025,0.76240608899087448]
[null,null,null,null,null,null,null,null,null,null,null,null,null,null,null,null,null,null,null,null,null,null,null,null,null,null,null,null,null,null,null,null,null,null,null,null,null,null,null,null,null,null,null,null,null,null,null,null,null,null,null,null,null,null,null,null,null,null,null,null,null,null,null,null,null,null,null,null,null,null,null,null,null,null,null,null,null,null,null,null,null,null,null,null,0,0,-6.643338223699824E-2,0,0.18470374684707641,0.7488628709159254,0]
[null,null,null,null,null,null,null,null,null,null,null,null,null,null,null,null,null,null,null,null,null,null,null,null,null,null,null,null,null,null,null,null,null,null,null,null,null,null,null,null,null,null,null,null,null,null,null,null,null,null,null,null,null,null,null,null,null,null,null,null,null,null,null,null,null,null,null,null,null,null,null,null,null,null,null,null,null,null,null,null,null,null,null,null,null,null,6,null,null,11,16]
[null,null,null,null,null,null,null,null,null,null,null,null,null,null,null,null,null,null,null,null,null,null,null,null,null,null,null,null,null,null,null,null,null,null,null,null,null,null,null,null,null,null,null,null,null,null,null,null,null,null,null,null,null,null,null,null,null,null,null,null,null,null,null,null,null,null,null,null,null,null,null,null,null,null,null,null,null,null,null,null,null,null,null,null,null,null,"最大","最大^2",null,"抽水植物","石・礫"]
[null,null,null,null,null,null,null,null,null,null,null,null,null,null,null,null,null,null,null,null,null,null,null,null,null,null,null,null,null,null,null,null,null,null,null,null,null,null,null,null,null,null,null,null,null,null,null,null,null,null,null,null,null,null,null,null,null,null,null,null,null,null,null,null,null,null,null,null,null,null,null,null,null,null,null,null,null,null,null,null,null,null,null,null,1,0,-0.27571344375610352,0,6.4000000002919364E-7,0.83513476209039306,-8.9703267440199852E-3,0.86259977433296475,0.77495895412757276,0.76977727835284926,0.63086241351736605]
[null,null,null,null,null,null,null,null,null,null,null,null,null,null,null,null,null,null,null,null,null,null,null,null,null,null,null,null,null,null,null,null,null,null,null,null,null,null,null,null,null,null,null,null,null,null,null,null,null,null,null,null,null,null,null,null,null,null,null,null,null,null,null,null,null,null,null,null,null,null,null,null,null,null,null,null,null,null,null,null,null,null,null,null,0,0,-5.3435548060904593E-2,0,0,0.94317291645184065,-3.3915354872547611E-3]
[null,null,null,null,null,null,null,null,null,null,null,null,null,null,null,null,null,null,null,null,null,null,null,null,null,null,null,null,null,null,null,null,null,null,null,null,null,null,null,null,null,null,null,null,null,null,null,null,null,null,null,null,null,null,null,null,null,null,null,null,null,null,null,null,null,null,null,null,null,null,null,null,null,null,null,null,null,null,null,null,null,null,null,null,null,null,6,null,null,11,17]
[null,null,null,null,null,null,null,null,null,null,null,null,null,null,null,null,null,null,null,null,null,null,null,null,null,null,null,null,null,null,null,null,null,null,null,null,null,null,null,null,null,null,null,null,null,null,null,null,null,null,null,null,null,null,null,null,null,null,null,null,null,null,null,null,null,null,null,null,null,null,null,null,null,null,null,null,null,null,null,null,null,null,null,null,null,null,"最大","最大^2",null,"抽水植物","砂"]
[null,null,null,null,null,null,null,null,null,null,null,null,null,null,null,null,null,null,null,null,null,null,null,null,null,null,null,null,null,null,null,null,null,null,null,null,null,null,null,null,null,null,null,null,null,null,null,null,null,null,null,null,null,null,null,null,null,null,null,null,null,null,null,null,null,null,null,null,null,null,null,null,null,null,null,null,null,null,null,null,null,null,null,null,-0.67149829805755623,0,-0.32634344696998596,0,-1,1,-2.3628161288797855E-3,0.8625413448893362,0.77598905964468456,0.76943338977142239,0.62982561991991026]
[null,null,null,null,null,null,null,null,null,null,null,null,null,null,null,null,null,null,null,null,null,null,null,null,null,null,null,null,null,null,null,null,null,null,null,null,null,null,null,null,null,null,null,null,null,null,null,null,null,null,null,null,null,null,null,null,null,null,null,null,null,null,null,null,null,null,null,null,null,null,null,null,null,null,null,null,null,null,null,null,null,null,null,null,0,0,-5.2966661629211577E-2,0,0,0.94578002939395711,-1.2533089768312128E-3]
[null,null,null,null,null,null,null,null,null,null,null,null,null,null,null,null,null,null,null,null,null,null,null,null,null,null,null,null,null,null,null,null,null,null,null,null,null,null,null,null,null,null,null,null,null,null,null,null,null,null,null,null,null,null,null,null,null,null,null,null,null,null,null,null,null,null,null,null,null,null,null,null,null,null,null,null,null,null,null,null,null,null,null,null,null,null,6,null,null,11,18]
[null,null,null,null,null,null,null,null,null,null,null,null,null,null,null,null,null,null,null,null,null,null,null,null,null,null,null,null,null,null,null,null,null,null,null,null,null,null,null,null,null,null,null,null,null,null,null,null,null,null,null,null,null,null,null,null,null,null,null,null,null,null,null,null,null,null,null,null,null,null,null,null,null,null,null,null,null,null,null,null,null,null,null,null,null,null,"最大","最大^2",null,"抽水植物","泥"]
[null,null,null,null,null,null,null,null,null,null,null,null,null,null,null,null,null,null,null,null,null,null,null,null,null,null,null,null,null,null,null,null,null,null,null,null,null,null,null,null,null,null,null,null,null,null,null,null,null,null,null,null,null,null,null,null,null,null,null,null,null,null,null,null,null,null,null,null,null,null,null,null,null,null,null,null,null,null,null,null,null,null,null,null,-0.45360586664489755,0,-0.33904972672462463,0,-0.9,0.99987744599999995,2.344902977347374E-2,0.86283895263210231,0.77799970918329375,0.75807860391711024,0.64095540269221007]
[null,null,null,null,null,null,null,null,null,null,null,null,null,null,null,null,null,null,null,null,null,null,null,null,null,null,null,null,null,null,null,null,null,null,null,null,null,null,null,null,null,null,null,null,null,null,null,null,null,null,null,null,null,null,null,null,null,null,null,null,null,null,null,null,null,null,null,null,null,null,null,null,null,null,null,null,null,null,null,null,null,null,null,null,0,0,-5.4692364815868276E-2,0,0,0.93988022079012501,5.427414394006732E-3]
[null,null,null,null,null,null,null,null,null,null,null,null,null,null,null,null,null,null,null,null,null,null,null,null,null,null,null,null,null,null,null,null,null,null,null,null,null,null,null,null,null,null,null,null,null,null,null,null,null,null,null,null,null,null,null,null,null,null,null,null,null,null,null,null,null,null,null,null,null,null,null,null,null,null,null,null,null,null,null,null,null,null,null,null,null,null,6,null,null,11]
[null,null,null,null,null,null,null,null,null,null,null,null,null,null,null,null,null,null,null,null,null,null,null,null,null,null,null,null,null,null,null,null,null,null,null,null,null,null,null,null,null,null,null,null,null,null,null,null,null,null,null,null,null,null,null,null,null,null,null,null,null,null,null,null,null,null,null,null,null,null,null,null,null,null,null,null,null,null,null,null,null,null,null,null,null,null,"最大","最大^2",null,"抽水植物"]
[null,null,null,null,null,null,null,null,null,null,null,null,null,null,null,null,null,null,null,null,null,null,null,null,null,null,null,null,null,null,null,null,null,null,null,null,null,null,null,null,null,null,null,null,null,null,null,null,null,null,null,null,null,null,null,null,null,null,null,null,null,null,null,null,null,null,null,null,null,null,null,null,null,null,null,null,null,null,null,null,null,null,null,null,-0.83705837080670165,0,-0.28690832853317261,0,0.97850000000000004,0.87697535949346894,0.53081732988357544,0.86253937294513161,0.77491410559554263,0.77078616540492961,0.62953596667031719]
[null,null,null,null,null,null,null,null,null,null,null,null,null,null,null,null,null,null,null,null,null,null,null,null,null,null,null,null,null,null,null,null,null,null,null,null,null,null,null,null,null,null,null,null,null,null,null,null,null,null,null,null,null,null,null,null,null,null,null,null,null,null,null,null,null,null,null,null,null,null,null,null,null,null,null,null,null,null,null,null,null,null,null,null,0,0,-5.3158256230273385E-2,0,0,0.94684174376972663,0]
[null,null,null,null,null,null,null,null,null,null,null,null,null,null,null,null,null,null,null,null,null,null,null,null,null,null,null,null,null,null,null,null,null,null,null,null,null,null,null,null,null,null,null,null,null,null,null,null,null,null,null,null,null,null,null,null,null,null,null,null,null,null,null,null,null,null,null,null,null,null,null,null,null,null,null,null,null,null,null,null,null,null,null,null,1,null,6,null,9,11]
[null,null,null,null,null,null,null,null,null,null,null,null,null,null,null,null,null,null,null,null,null,null,null,null,null,null,null,null,null,null,null,null,null,null,null,null,null,null,null,null,null,null,null,null,null,null,null,null,null,null,null,null,null,null,null,null,null,null,null,null,null,null,null,null,null,null,null,null,null,null,null,null,null,null,null,null,null,null,null,null,null,null,null,null,"最小","最小^2","最大","最大^2","陸地","抽水植物"]
[null,null,null,null,null,null,null,null,null,null,null,null,null,null,null,null,null,null,null,null,null,null,null,null,null,null,null,null,null,null,null,null,null,null,null,null,null,null,null,null,null,null,null,null,null,null,null,null,null,null,null,null,null,null,null,null,null,null,null,null,null,null,null,null,null,null,null,null,null,null,null,null,null,null,null,null,null,null,null,null,null,null,null,null,-0.13479951510266117,0,-0.59670668840408325,0,0.67201897299999991,0.99999800000000005,1,0.88970584410120668,0.80851189070589624,0.75326078206840397,0.77646239183294041]
[null,null,null,null,null,null,null,null,null,null,null,null,null,null,null,null,null,null,null,null,null,null,null,null,null,null,null,null,null,null,null,null,null,null,null,null,null,null,null,null,null,null,null,null,null,null,null,null,null,null,null,null,null,null,null,null,null,null,null,null,null,null,null,null,null,null,null,null,null,null,null,null,null,null,null,null,null,null,null,null,null,null,null,null,-7.148087868805629E-2,0,-6.6973709775825632E-2,0,0.20750434796661374,0.65404106356950431,0]
[null,null,null,null,null,null,null,null,null,null,null,null,null,null,null,null,null,null,null,null,null,null,null,null,null,null,null,null,null,null,null,null,null,null,null,null,null,null,null,null,null,null,null,null,null,null,null,null,null,null,null,null,null,null,null,null,null,null,null,null,null,null,null,null,null,null,null,null,null,null,null,null,null,null,null,null,null,null,null,null,null,null,null,null,2,null,6,null,9,11]
[null,null,null,null,null,null,null,null,null,null,null,null,null,null,null,null,null,null,null,null,null,null,null,null,null,null,null,null,null,null,null,null,null,null,null,null,null,null,null,null,null,null,null,null,null,null,null,null,null,null,null,null,null,null,null,null,null,null,null,null,null,null,null,null,null,null,null,null,null,null,null,null,null,null,null,null,null,null,null,null,null,null,null,null,"最大","最大^2","最大","最大^2","陸地","抽水植物"]
[null,null,null,null,null,null,null,null,null,null,null,null,null,null,null,null,null,null,null,null,null,null,null,null,null,null,null,null,null,null,null,null,null,null,null,null,null,null,null,null,null,null,null,null,null,null,null,null,null,null,null,null,null,null,null,null,null,null,null,null,null,null,null,null,null,null,null,null,null,null,null,null,null,null,null,null,null,null,null,null,null,null,null,null,-0.12013196599999998,0,-0.7629815936088562,0,0.96999899999999994,0.99999899999999997,0.27960345149040222,0.8855976290516796,0.80004227739261657,0.7078136882713747,0.80572980864608656]
[null,null,null,null,null,null,null,null,null,null,null,null,null,null,null,null,null,null,null,null,null,null,null,null,null,null,null,null,null,null,null,null,null,null,null,null,null,null,null,null,null,null,null,null,null,null,null,null,null,null,null,null,null,null,null,null,null,null,null,null,null,null,null,null,null,null,null,null,null,null,null,null,null,null,null,null,null,null,null,null,null,null,null,null,-5.1848253868591307E-2,0,-7.8133924747296801E-2,0,0.27327448340973381,0.59674333797437817,0]
[null,null,null,null,null,null,null,null,null,null,null,null,null,null,null,null,null,null,null,null,null,null,null,null,null,null,null,null,null,null,null,null,null,null,null,null,null,null,null,null,null,null,null,null,null,null,null,null,null,null,null,null,null,null,null,null,null,null,null,null,null,null,null,null,null,null,null,null,null,null,null,null,null,null,null,null,null,null,null,null,null,null,null,null,3,null,6,null,9,11]
[null,null,null,null,null,null,null,null,null,null,null,null,null,null,null,null,null,null,null,null,null,null,null,null,null,null,null,null,null,null,null,null,null,null,null,null,null,null,null,null,null,null,null,null,null,null,null,null,null,null,null,null,null,null,null,null,null,null,null,null,null,null,null,null,null,null,null,null,null,null,null,null,null,null,null,null,null,null,null,null,null,null,null,null,"平均","平均^2","最大","最大^2","陸地","抽水植物"]
[null,null,null,null,null,null,null,null,null,null,null,null,null,null,null,null,null,null,null,null,null,null,null,null,null,null,null,null,null,null,null,null,null,null,null,null,null,null,null,null,null,null,null,null,null,null,null,null,null,null,null,null,null,null,null,null,null,null,null,null,null,null,null,null,null,null,null,null,null,null,null,null,null,null,null,null,null,null,null,null,null,null,null,null,-0.10747650552490237,0,-0.58298230171203613,0,0.61231795000366207,0.99966998699999987,1,0.88921696731703781,0.81652872270604659,0.74384020687148356,0.77493287432469737]
[null,null,null,null,null,null,null,null,null,null,null,null,null,null,null,null,null,null,null,null,null,null,null,null,null,null,null,null,null,null,null,null,null,null,null,null,null,null,null,null,null,null,null,null,null,null,null,null,null,null,null,null,null,null,null,null,null,null,null,null,null,null,null,null,null,null,null,null,null,null,null,null,null,null,null,null,null,null,null,null,null,null,null,null,-6.6382302785168226E-2,0,-6.725495908141306E-2,0,0.19433371353322113,0.67202902460019753,0]
[null,null,null,null,null,null,null,null,null,null,null,null,null,null,null,null,null,null,null,null,null,null,null,null,null,null,null,null,null,null,null,null,null,null,null,null,null,null,null,null,null,null,null,null,null,null,null,null,null,null,null,null,null,null,null,null,null,null,null,null,null,null,null,null,null,null,null,null,null,null,null,null,null,null,null,null,null,null,null,null,null,null,null,null,null,null,6,null,9,11,16]
[null,null,null,null,null,null,null,null,null,null,null,null,null,null,null,null,null,null,null,null,null,null,null,null,null,null,null,null,null,null,null,null,null,null,null,null,null,null,null,null,null,null,null,null,null,null,null,null,null,null,null,null,null,null,null,null,null,null,null,null,null,null,null,null,null,null,null,null,null,null,null,null,null,null,null,null,null,null,null,null,null,null,null,null,null,null,"最大","最大^2","陸地","抽水植物","石・礫"]
[null,null,null,null,null,null,null,null,null,null,null,null,null,null,null,null,null,null,null,null,null,null,null,null,null,null,null,null,null,null,null,null,null,null,null,null,null,null,null,null,null,null,null,null,null,null,null,null,null,null,null,null,null,null,null,null,null,null,null,null,null,null,null,null,null,null,null,null,null,null,null,null,null,null,null,null,null,null,null,null,null,null,null,null,0.98,0,-0.55898445844650269,0,0.61761631399999983,1,3.3651215489953756E-3,0.88882939921563131,0.81903855610470766,0.74152099878058353,0.77241684040849712]
[null,null,null,null,null,null,null,null,null,null,null,null,null,null,null,null,null,null,null,null,null,null,null,null,null,null,null,null,null,null,null,null,null,null,null,null,null,null,null,null,null,null,null,null,null,null,null,null,null,null,null,null,null,null,null,null,null,null,null,null,null,null,null,null,null,null,null,null,null,null,null,null,null,null,null,null,null,null,null,null,null,null,null,null,0,0,-6.9079584724707488E-2,0,0.20997662965014569,0.72013251356683028,8.1127205831656732E-4]
[null,null,null,null,null,null,null,null,null,null,null,null,null,null,null,null,null,null,null,null,null,null,null,null,null,null,null,null,null,null,null,null,null,null,null,null,null,null,null,null,null,null,null,null,null,null,null,null,null,null,null,null,null,null,null,null,null,null,null,null,null,null,null,null,null,null,null,null,null,null,null,null,null,null,null,null,null,null,null,null,null,null,null,null,null,null,6,null,9,11,17]
[null,null,null,null,null,null,null,null,null,null,null,null,null,null,null,null,null,null,null,null,null,null,null,null,null,null,null,null,null,null,null,null,null,null,null,null,null,null,null,null,null,null,null,null,null,null,null,null,null,null,null,null,null,null,null,null,null,null,null,null,null,null,null,null,null,null,null,null,null,null,null,null,null,null,null,null,null,null,null,null,null,null,null,null,null,null,"最大","最大^2","陸地","抽水植物","砂"]
[null,null,null,null,null,null,null,null,null,null,null,null,null,null,null,null,null,null,null,null,null,null,null,null,null,null,null,null,null,null,null,null,null,null,null,null,null,null,null,null,null,null,null,null,null,null,null,null,null,null,null,null,null,null,null,null,null,null,null,null,null,null,null,null,null,null,null,null,null,null,null,null,null,null,null,null,null,null,null,null,null,null,null,null,-0.27899606000000005,0,-0.14473049342632294,0,0.18308038894372558,0.27296634297082512,3.6724135279655457E-2,0.88958258196089868,0.80621927417687678,0.77190318259077473,0.75937303499774023]
[null,null,null,null,null,null,null,null,null,null,null,null,null,null,null,null,null,null,null,null,null,null,null,null,null,null,null,null,null,null,null,null,null,null,null,null,null,null,null,null,null,null,null,null,null,null,null,null,null,null,null,null,null,null,null,null,null,null,null,null,null,null,null,null,null,null,null,null,null,null,null,null,null,null,null,null,null,null,null,null,null,null,null,null,0,0,-6.1351010949241509E-2,0,0.21350385632888774,0.67426903673069183,5.0876095991178927E-2]
[null,null,null,null,null,null,null,null,null,null,null,null,null,null,null,null,null,null,null,null,null,null,null,null,null,null,null,null,null,null,null,null,null,null,null,null,null,null,null,null,null,null,null,null,null,null,null,null,null,null,null,null,null,null,null,null,null,null,null,null,null,null,null,null,null,null,null,null,null,null,null,null,null,null,null,null,null,null,null,null,null,null,null,null,null,null,6,null,9,11,18]
[null,null,null,null,null,null,null,null,null,null,null,null,null,null,null,null,null,null,null,null,null,null,null,null,null,null,null,null,null,null,null,null,null,null,null,null,null,null,null,null,null,null,null,null,null,null,null,null,null,null,null,null,null,null,null,null,null,null,null,null,null,null,null,null,null,null,null,null,null,null,null,null,null,null,null,null,null,null,null,null,null,null,null,null,null,null,"最大","最大^2","陸地","抽水植物","泥"]
[null,null,null,null,null,null,null,null,null,null,null,null,null,null,null,null,null,null,null,null,null,null,null,null,null,null,null,null,null,null,null,null,null,null,null,null,null,null,null,null,null,null,null,null,null,null,null,null,null,null,null,null,null,null,null,null,null,null,null,null,null,null,null,null,null,null,null,null,null,null,null,null,null,null,null,null,null,null,null,null,null,null,null,null,-1,0,-0.62211149930953979,0,0.77896831500000008,0.99998799999999999,-4.8581227660179138E-2,0.88793040214900287,0.80423239434898008,0.75313385583778336,0.77021616270725413]
[null,null,null,null,null,null,null,null,null,null,null,null,null,null,null,null,null,null,null,null,null,null,null,null,null,null,null,null,null,null,null,null,null,null,null,null,null,null,null,null,null,null,null,null,null,null,null,null,null,null,null,null,null,null,null,null,null,null,null,null,null,null,null,null,null,null,null,null,null,null,null,null,null,null,null,null,null,null,null,null,null,null,null,null,0,0,-7.1820926647780406E-2,0,0.24740289915789429,0.67272876543962812,-8.0474087546972845E-3]
[null,null,null,null,null,null,null,null,null,null,null,null,null,null,null,null,null,null,null,null,null,null,null,null,null,null,null,null,null,null,null,null,null,null,null,null,null,null,null,null,null,null,null,null,null,null,null,null,null,null,null,null,null,null,null,null,null,null,null,null,null,null,null,null,null,null,null,null,null,null,null,null,null,null,null,null,null,null,null,null,null,null,null,null,null,null,6,null,9,11]
[null,null,null,null,null,null,null,null,null,null,null,null,null,null,null,null,null,null,null,null,null,null,null,null,null,null,null,null,null,null,null,null,null,null,null,null,null,null,null,null,null,null,null,null,null,null,null,null,null,null,null,null,null,null,null,null,null,null,null,null,null,null,null,null,null,null,null,null,null,null,null,null,null,null,null,null,null,null,null,null,null,null,null,null,null,null,"最大","最大^2","陸地","抽水植物"]
[null,null,null,null,null,null,null,null,null,null,null,null,null,null,null,null,null,null,null,null,null,null,null,null,null,null,null,null,null,null,null,null,null,null,null,null,null,null,null,null,null,null,null,null,null,null,null,null,null,null,null,null,null,null,null,null,null,null,null,null,null,null,null,null,null,null,null,null,null,null,null,null,null,null,null,null,null,null,null,null,null,null,null,null,-1,0,-0.52092874050140381,0,0.54446513008245856,0.99496900500000007,-0.99999970197677612,0.88903253636833024,0.82382769161009606,0.74459013450315847,0.76577739209672702]
[null,null,null,null,null,null,null,null,null,null,null,null,null,null,null,null,null,null,null,null,null,null,null,null,null,null,null,null,null,null,null,null,null,null,null,null,null,null,null,null,null,null,null,null,null,null,null,null,null,null,null,null,null,null,null,null,null,null,null,null,null,null,null,null,null,null,null,null,null,null,null,null,null,null,null,null,null,null,null,null,null,null,null,null,0,0,-6.6642972077337922E-2,0,0.19162330470856492,0.74173372321409714,0]
[null,null,null,null,null,null,null,null,null,null,null,null,null,null,null,null,null,null,null,null,null,null,null,null,null,null,null,null,null,null,null,null,null,null,null,null,null,null,null,null,null,null,null,null,null,null,null,null,null,null,null,null,null,null,null,null,null,null,null,null,null,null,null,null,null,null,null,null,null,null,null,null,null,null,null,null,null,null,null,null,null,null,null,null,1,null,6,null,9,11,16]
[null,null,null,null,null,null,null,null,null,null,null,null,null,null,null,null,null,null,null,null,null,null,null,null,null,null,null,null,null,null,null,null,null,null,null,null,null,null,null,null,null,null,null,null,null,null,null,null,null,null,null,null,null,null,null,null,null,null,null,null,null,null,null,null,null,null,null,null,null,null,null,null,null,null,null,null,null,null,null,null,null,null,null,null,"最小","最小^2","最大","最大^2","陸地","抽水植物","石・礫"]
[null,null,null,null,null,null,null,null,null,null,null,null,null,null,null,null,null,null,null,null,null,null,null,null,null,null,null,null,null,null,null,null,null,null,null,null,null,null,null,null,null,null,null,null,null,null,null,null,null,null,null,null,null,null,null,null,null,null,null,null,null,null,null,null,null,null,null,null,null,null,null,null,null,null,null,null,null,null,null,null,null,null,null,null,0.61733190599999999,0,-0.71520316600799561,0,0.99999979799999994,0.99999999900000003,0.2370510995388031,0.8771908379698965,0.79566829590743782,0.70140102552159922,0.76607570639034217]
[null,null,null,null,null,null,null,null,null,null,null,null,null,null,null,null,null,null,null,null,null,null,null,null,null,null,null,null,null,null,null,null,null,null,null,null,null,null,null,null,null,null,null,null,null,null,null,null,null,null,null,null,null,null,null,null,null,null,null,null,null,null,null,null,null,null,null,null,null,null,null,null,null,null,null,null,null,null,null,null,null,null,null,null,0.23015093263936343,0,-5.6437184706052641E-2,0,0.21708911190216754,0.45983110694984297,3.6491663802573474E-2]
[null,null,null,null,null,null,null,null,null,null,null,null,null,null,null,null,null,null,null,null,null,null,null,null,null,null,null,null,null,null,null,null,null,null,null,null,null,null,null,null,null,null,null,null,null,null,null,null,null,null,null,null,null,null,null,null,null,null,null,null,null,null,null,null,null,null,null,null,null,null,null,null,null,null,null,null,null,null,null,null,null,null,null,null,1,null,6,null,9,11,17]
[null,null,null,null,null,null,null,null,null,null,null,null,null,null,null,null,null,null,null,null,null,null,null,null,null,null,null,null,null,null,null,null,null,null,null,null,null,null,null,null,null,null,null,null,null,null,null,null,null,null,null,null,null,null,null,null,null,null,null,null,null,null,null,null,null,null,null,null,null,null,null,null,null,null,null,null,null,null,null,null,null,null,null,null,"最小","最小^2","最大","最大^2","陸地","抽水植物","砂"]
[null,null,null,null,null,null,null,null,null,null,null,null,null,null,null,null,null,null,null,null,null,null,null,null,null,null,null,null,null,null,null,null,null,null,null,null,null,null,null,null,null,null,null,null,null,null,null,null,null,null,null,null,null,null,null,null,null,null,null,null,null,null,null,null,null,null,null,null,null,null,null,null,null,null,null,null,null,null,null,null,null,null,null,null,-1.2124064723510047E-3,0,-0.54223906993865967,0,0.69583399599999995,0.999,0.22312465310096741,0.88900530804814126,0.78592044418977225,0.80261328370561469,0.74549812039346086]
[null,null,null,null,null,null,null,null,null,null,null,null,null,null,null,null,null,null,null,null,null,null,null,null,null,null,null,null,null,null,null,null,null,null,null,null,null,null,null,null,null,null,null,null,null,null,null,null,null,null,null,null,null,null,null,null,null,null,null,null,null,null,null,null,null,null,null,null,null,null,null,null,null,null,null,null,null,null,null,null,null,null,null,null,-6.3554076107475474E-4,0,-6.0162776083414971E-2,0,0.21239530902677312,0.64589955295196333,8.0906821176773919E-2]
[null,null,null,null,null,null,null,null,null,null,null,null,null,null,null,null,null,null,null,null,null,null,null,null,null,null,null,null,null,null,null,null,null,null,null,null,null,null,null,null,null,null,null,null,null,null,null,null,null,null,null,null,null,null,null,null,null,null,null,null,null,null,null,null,null,null,null,null,null,null,null,null,null,null,null,null,null,null,null,null,null,null,null,null,1,null,6,null,9,11,18]
[null,null,null,null,null,null,null,null,null,null,null,null,null,null,null,null,null,null,null,null,null,null,null,null,null,null,null,null,null,null,null,null,null,null,null,null,null,null,null,null,null,null,null,null,null,null,null,null,null,null,null,null,null,null,null,null,null,null,null,null,null,null,null,null,null,null,null,null,null,null,null,null,null,null,null,null,null,null,null,null,null,null,null,null,"最小","最小^2","最大","最大^2","陸地","抽水植物","泥"]
[null,null,null,null,null,null,null,null,null,null,null,null,null,null,null,null,null,null,null,null,null,null,null,null,null,null,null,null,null,null,null,null,null,null,null,null,null,null,null,null,null,null,null,null,null,null,null,null,null,null,null,null,null,null,null,null,null,null,null,null,null,null,null,null,null,null,null,null,null,null,null,null,null,null,null,null,null,null,null,null,null,null,null,null,0.59984936600000005,0,-0.66973119974136353,0,0.99782999999999999,0.99997990000000003,-0.23795884847640991,0.88259213282910043,0.79084277547941428,0.7670540813418496,0.73765594015333813]
[null,null,null,null,null,null,null,null,null,null,null,null,null,null,null,null,null,null,null,null,null,null,null,null,null,null,null,null,null,null,null,null,null,null,null,null,null,null,null,null,null,null,null,null,null,null,null,null,null,null,null,null,null,null,null,null,null,null,null,null,null,null,null,null,null,null,null,null,null,null,null,null,null,null,null,null,null,null,null,null,null,null,null,null,0.22822858504847754,0,-5.3934947746335116E-2,0,0.22106933489672673,0.46927069727120402,-2.7496435037256666E-2]
[null,null,null,null,null,null,null,null,null,null,null,null,null,null,null,null,null,null,null,null,null,null,null,null,null,null,null,null,null,null,null,null,null,null,null,null,null,null,null,null,null,null,null,null,null,null,null,null,null,null,null,null,null,null,null,null,null,null,null,null,null,null,null,null,null,null,null,null,null,null,null,null,null,null,null,null,null,null,null,null,null,null,null,null,1,null,6,null,9,11]
[null,null,null,null,null,null,null,null,null,null,null,null,null,null,null,null,null,null,null,null,null,null,null,null,null,null,null,null,null,null,null,null,null,null,null,null,null,null,null,null,null,null,null,null,null,null,null,null,null,null,null,null,null,null,null,null,null,null,null,null,null,null,null,null,null,null,null,null,null,null,null,null,null,null,null,null,null,null,null,null,null,null,null,null,"最小","最小^2","最大","最大^2","陸地","抽水植物"]
[null,null,null,null,null,null,null,null,null,null,null,null,null,null,null,null,null,null,null,null,null,null,null,null,null,null,null,null,null,null,null,null,null,null,null,null,null,null,null,null,null,null,null,null,null,null,null,null,null,null,null,null,null,null,null,null,null,null,null,null,null,null,null,null,null,null,null,null,null,null,null,null,null,null,null,null,null,null,null,null,null,null,null,null,-0.17729263873181161,0,-0.77595198154449463,0,0.95996999700000007,0.999999996,-0.97500002384185791,0.88537315737748412,0.78071638745461924,0.74582718737284837,0.78569536943743779]
[null,null,null,null,null,null,null,null,null,null,null,null,null,null,null,null,null,null,null,null,null,null,null,null,null,null,null,null,null,null,null,null,null,null,null,null,null,null,null,null,null,null,null,null,null,null,null,null,null,null,null,null,null,null,null,null,null,null,null,null,null,null,null,null,null,null,null,null,null,null,null,null,null,null,null,null,null,null,null,null,null,null,null,null,-8.3083076881765014E-2,0,-7.6965946027147708E-2,0,0.26195315993391027,0.57799781715717702,0]

{"sheet":"評価用","index":5,"n_rows":221,"n_cols":89,"rows_kept":221,"cut":false,"hidden":false,"merged":[[2,48,3,48],[2,38,3,38],[2,39,3,39],[2,40,3,40],[2,41,3,41],[2,42,3,42],[2,47,3,47],[0,11,0,32],[2,37,3,37],[1,3,3,3],[1,4,2,6],[1,7,2,15],[1,16,3,16],[1,17,3,17],[1,18,3,18],[1,19,3,19],[1,20,3,20],[1,21,2,24],[2,27,3,27],[2,36,3,36]]}
["評価用シート",null,null,null,null,null,null,null,null,null,null,"調査の２年目（２回目）以降に、環境データから各調査区間のスコアを計算するためのシートです。\n\n操作手順\n（１）環境調査のデータを入力し、⑦のボタンを押してください。AA～AW列が自動計算され、グラフが更新されます。\n※未計測のセルは、空欄にしてください。\n※グラフのレイアウトが乱れる場合があります。この場合には、適宜グラフの設定を変更してください。\n"]
[null,null,null,"水路幅（cm）","水深（cm）",null,null,"流速（cm/秒） ",null,null,null,null,null,null,null,null,"陸地（cm）","沈水植物の幅（cm）","抽水植物の幅（cm）","垂下植物の幅（cm）","リタ―\n（ｃｍ）","河床材料％",null,null,null,null,"計算結果"]
[null,"調査区間名",null,null,null,null,null,null,null,null,null,null,null,null,null,null,null,null,null,null,null,null,null,null,null,null,null,"水路幅（cm）","水深（cm）",null,null,null,"流速（cm/s）",null,null,null,"陸地（％）","沈水植物（％）","抽水植物（％）","垂下植物（％）","リタ―（％）","全植物（％）","全カバー（％）","河床材料（％）",null,null,null,"N","評価\nスコア",null,null,"水路幅cm","水深cm",null,null,null,"流速cm/s",null,null,null,"陸地％","沈水植物％","抽水植物％","垂下植物％","リタ―","全植物％","全カバー","河床材料％",null,null,null,null,null,null,null,null,null,null,null,2,null,6,null,9,11,17]
[null,null,null,null,"左","中","右","左\n1回目","2回目","3回目","中\n1回目","2回目","3回目","右\n1回目","2回目","3回目",null,null,null,null,null,"石・礫","砂","泥","ｺﾝｸﾘｰﾄ",null,"調査区間",null,"最小","最大","平均","標準偏差","最小","最大","平均","標準偏差",null,null,null,null,null,null,null,"石・礫","砂","泥","ｺﾝｸﾘｰﾄ",null,null,null,"調査地点",null,"最小","最大","平均","標準偏差","最小","最大","平均","標準偏差",null,null,null,null,null,null,null,"石・礫","砂","泥","ｺﾝｸﾘｰﾄ",null,null,null,null,null,null,null,null,"最大",null,"最大",null,"陸地","抽水植物","砂"]
[1,null,null,null,null,null,null,null,null,null,null,null,null,null,null,null,null,null,null,null,null,null,null,null,null,null,null,null,null,null,null,null,null,null,null,null,null,null,null,null,null,null,null,null,null,null,null,null,null,null,{"$f":"AY11","v":"区間10"},{"$f":"AVERAGE(BA11:BA20)","v":400},{"$f":"MIN(BB11:BD20)","v":23},{"$f":"MAX(BB11:BD20)","v":45},{"$f":"AVERAGE(BB11:BD20)","v":32.93333333333333},{"$f":"STDEVP(BB11:BD20)","v":6.2872004015212433},{"$f":"MIN(BW11:BY20)","v":24.5},{"$f":"MAX(BW11:BY20)","v":50.5},{"$f":"AVERAGE(BW11:BY20)","v":35.5},{"$f":"STDEVP(BW11:BY20)","v":10.158740079360236},{"$f":"AVERAGE(BN11:BN20)","v":0},{"$f":"AVERAGE(BO11:BO20)","v":1.5},0,17,{"$f":"AVERAGE(BR11:BR20)","v":0},{"$f":"IFERROR(BJ5,0)+IFERROR(BK5,0)+IFERROR(BL5,0)","v":18.5},{"$f":"MIN(BN5+IFERROR(BM5,0),100)","v":18.5},{"$f":"AVERAGE(BS11:BS20)","v":62},{"$f":"AVERAGE(BT11:BT20)","v":22},{"$f":"AVERAGE(BU11:BU20)","v":16},{"$f":"AVERAGE(BV11:BV20)","v":0},null,null,null,null,null,null,null,null,-5.1141149789527385E-2,null,-6.4522693125145691E-2,null,3.4919503190403857E-2,0.19767623845919335,5.6143545326267856E-2,7.3390226210169898,null,{"$f":"SUM(CI8:CI47)","v":10}]
[2,null,null,null,null,null,null,null,null,null,null,null,null,null,null,null,null,null,null,null,null,null,null,null,null,null,null,null,null,null,null,null,null,null,null,null,null,null,null,null,null,null,null,null,null,null,null,null,null,null,"N",{"$f":"COUNT(BA11:BA20)","v":5},{"$f":"COUNT(BB11:BD20)","v":15},{"$f":"COUNT(BB11:BD20)","v":15},{"$f":"COUNT(BB11:BD20)","v":15},{"$f":"COUNT(BB11:BD20)","v":15},{"$f":"COUNT(BW11:BY20)","v":5},{"$f":"COUNT(BW11:BY20)","v":5},{"$f":"COUNT(BW11:BY20)","v":5},{"$f":"COUNT(BW11:BY20)","v":5},{"$f":"COUNT(BN11:BN20)","v":5},{"$f":"COUNT(BO11:BO20)","v":5},5,5,5,{"$f":"COUNT(BO11:BQ20)","v":15},{"$f":"COUNT(BO11:BR20)","v":20},{"$f":"COUNT(BS11:BS20)","v":5},5,5,{"$f":"COUNT(BV11:BV20)","v":5}]
[3,null,null,null,null,null,null,null,null,null,null,null,null,null,null,null,null,null,null,null,null,null,null,null,null,null,null,null,null,null,null,null,null,null,null,null,null,null,null,null,null,null,null,null,null,null,null,null,null,null,null,null,null,null,null,null,null,null,null,null,null,null,null,null,null,null,null,null,null,null,null,null,null,null,null,null,null,null,null,null,null,null,null,null,null,null,"データ有無","スコア","スコア（1-5）"]
[4,null,null,null,null,null,null,null,null,null,null,null,null,null,null,null,null,null,null,null,null,null,null,null,null,null,null,null,null,null,null,null,null,null,null,null,null,null,null,null,null,null,null,null,null,null,null,null,null,null,null,null,null,null,null,null,null,null,null,null,null,null,null,null,null,null,null,null,null,null,null,null,null,null,null,null,null,null,1,40,null,45.5,null,5,0,30,{"$f":"IF(COUNT(CB8:CH8)>0,1,0)","v":1},{"$f":"IF(CI8=1,SUMPRODUCT($CB$5:$CH$5,CB8:CH8)+$CI$5,0)","v":4.2164979679818213},{"$f":"IF(CJ8>5,5,IF(CJ8<1,1,ROUND(CJ8,0)))","v":4}]
[5,null,null,null,null,null,null,null,null,null,null,null,null,null,null,null,null,null,null,null,null,null,null,null,null,null,null,null,null,null,null,null,null,null,null,null,null,null,null,null,null,null,null,null,null,null,null,null,null,null,null,null,"水路幅（cm）","水深（cm）",null,null,"流速（cm/秒） ",null,null,null,null,null,null,null,null,"陸地（cm）","沈水植物の幅（cm）","抽水植物の幅（cm）","垂下植物の幅（cm）","リタ―\n（ｃｍ）","河床材料％",null,null,null,"流速",null,null,null,2,43,null,42.5,null,4.5,0,16,{"$f":"IF(COUNT(CB9:CH9)>0,1,0)","v":1},{"$f":"IF(CI9=1,SUMPRODUCT($CB$5:$CH$5,CB9:CH9)+$CI$5,0)","v":3.4531732118257237},{"$f":"IF(CJ9>5,5,IF(CJ9<1,1,ROUND(CJ9,0)))","v":3}]
[6,null,null,null,null,null,null,null,null,null,null,null,null,null,null,null,null,null,null,null,null,null,null,null,null,null,null,null,null,null,null,null,null,null,null,null,null,null,null,null,null,null,null,null,null,null,null,null,null,null,"調査地点",null,null,"左","中","右","左",null,null,"中",null,null,"右",null,null,null,null,null,null,null,"石・礫","砂","泥","ｺﾝｸﾘｰﾄ","左","中","右",null,3,40,null,42.5,null,10.5,1.5,14,1,4.0003409473729832,4]
[7,null,null,null,null,null,null,null,null,null,null,null,null,null,null,null,null,null,null,null,null,null,null,null,null,null,null,null,null,null,null,null,null,null,null,null,null,null,null,null,null,null,null,null,null,null,null,null,null,null,"区間10",1,400,32,31,38,null,null,null,24,25,null,null,null,null,0,2.5,0,30,0,40,30,30,0,null,24.5,null,null,4,40,null,31.5,null,8,0,26,1,5,5]
[8,null,null,null,null,null,null,null,null,null,null,null,null,null,null,null,null,null,null,null,null,null,null,null,null,null,null,null,null,null,null,null,null,null,null,null,null,null,null,null,null,null,null,null,null,null,null,null,null,null,null,2,400,35,33,34,null,null,null,35,36,null,null,null,null,0,0,0,35,0,60,40,0,0,null,35.5,null,null,5,38,null,45.5,null,1,0,16,1,3.393092620231509,3]
[9,null,null,null,null,null,null,null,null,null,null,null,null,null,null,null,null,null,null,null,null,null,null,null,null,null,null,null,null,null,null,null,null,null,null,null,null,null,null,null,null,null,null,null,null,null,null,null,null,null,null,3,400,40,45,43,null,null,null,50,51,null,null,null,null,0,0,0,20,0,40,30,30,0,null,50.5,null,null,6,30,null,66.5,null,10.5,0,10,1,2.4421192712708981,2]
[10,null,null,null,null,null,null,null,null,null,null,null,null,null,null,null,null,null,null,null,null,null,null,null,null,null,null,null,null,null,null,null,null,null,null,null,null,null,null,null,null,null,null,null,null,null,null,null,null,null,null,4,400,26,23,24,null,null,null,42,43,null,null,null,null,0,5,0,0,0,80,10,10,0,null,42.5,null,null,7,32,null,95.5,null,22.5,0,12,1,1,1]
[11,null,null,null,null,null,null,null,null,null,null,null,null,null,null,null,null,null,null,null,null,null,null,null,null,null,null,null,null,null,null,null,null,null,null,null,null,null,null,null,null,null,null,null,null,null,null,null,null,null,null,5,400,30,28,32,null,null,null,24,25,null,null,null,null,0,0,0,0,0,90,0,10,0,null,24.5,null,null,8,27,null,89.5,null,26.5,9,6,1,3.224744794635261,3]
[12,null,null,null,null,null,null,null,null,null,null,null,null,null,null,null,null,null,null,null,null,null,null,null,null,null,null,null,null,null,null,null,null,null,null,null,null,null,null,null,null,null,null,null,null,null,null,null,null,null,null,null,null,null,null,null,null,null,null,null,null,null,null,null,null,null,null,null,null,null,null,null,null,null,null,null,null,null,9,38,null,95.5,null,16.5,11,12,1,2.6580747051715399,3]
[13,null,null,null,null,null,null,null,null,null,null,null,null,null,null,null,null,null,null,null,null,null,null,null,null,null,null,null,null,null,null,null,null,null,null,null,null,null,null,null,null,null,null,null,null,null,null,null,null,null,null,null,null,null,null,null,null,null,null,null,null,null,null,null,null,null,null,null,null,null,null,null,null,null,null,null,null,null,10,45,null,50.5,null,0,0,22,1,3.0144328748462934,3]
[14,null,null,null,null,null,null,null,null,null,null,null,null,null,null,null,null,null,null,null,null,null,null,null,null,null,null,null,null,null,null,null,null,null,null,null,null,null,null,null,null,null,null,null,null,null,null,null,null,null,null,null,null,null,null,null,null,null,null,null,null,null,null,null,null,null,null,null,null,null,null,null,null,null,null,null,null,null,11,null,null,null,null,null,null,null,0,0,1]
[15,null,null,null,null,null,null,null,null,null,null,null,null,null,null,null,null,null,null,null,null,null,null,null,null,null,null,null,null,null,null,null,null,null,null,null,null,null,null,null,null,null,null,null,null,null,null,null,null,null,null,null,null,null,null,null,null,null,null,null,null,null,null,null,null,null,null,null,null,null,null,null,null,null,null,null,null,null,12,null,null,null,null,null,null,null,0,0,1]
[16,null,null,null,null,null,null,null,null,null,null,null,null,null,null,null,null,null,null,null,null,null,null,null,null,null,null,null,null,null,null,null,null,null,null,null,null,null,null,null,null,null,null,null,null,null,null,null,null,null,null,null,null,null,null,null,null,null,null,null,null,null,null,null,null,null,null,null,null,null,null,null,null,null,null,null,null,null,13,null,null,null,null,null,null,null,0,0,1]
[17,null,null,null,null,null,null,null,null,null,null,null,null,null,null,null,null,null,null,null,null,null,null,null,null,null,null,null,null,null,null,null,null,null,null,null,null,null,null,null,null,null,null,null,null,null,null,null,null,null,null,null,null,null,null,null,null,null,null,null,null,null,null,null,null,null,null,null,null,null,null,null,null,null,null,null,null,null,14,null,null,null,null,null,null,null,0,0,1]
[18,null,null,null,null,null,null,null,null,null,null,null,null,null,null,null,null,null,null,null,null,null,null,null,null,null,null,null,null,null,null,null,null,null,null,null,null,null,null,null,null,null,null,null,null,null,null,null,null,null,null,null,null,null,null,null,null,null,null,null,null,null,null,null,null,null,null,null,null,null,null,null,null,null,null,null,null,null,15,null,null,null,null,null,null,null,0,0,1]
[19,null,null,null,null,null,null,null,null,null,null,null,null,null,null,null,null,null,null,null,null,null,null,null,null,null,null,null,null,null,null,null,null,null,null,null,null,null,null,null,null,null,null,null,null,null,null,null,null,null,null,null,null,null,null,null,null,null,null,null,null,null,null,null,null,null,null,null,null,null,null,null,null,null,null,null,null,null,16,null,null,null,null,null,null,null,0,0,1]
[20,null,null,null,null,null,null,null,null,null,null,null,null,null,null,null,null,null,null,null,null,null,null,null,null,null,null,null,null,null,null,null,null,null,null,null,null,null,null,null,null,null,null,null,null,null,null,null,null,null,null,null,null,null,null,null,null,null,null,null,null,null,null,null,null,null,null,null,null,null,null,null,null,null,null,null,null,null,17,null,null,null,null,null,null,null,0,0,1]
[21,null,null,null,null,null,null,null,null,null,null,null,null,null,null,null,null,null,null,null,null,null,null,null,null,null,null,null,null,null,null,null,null,null,null,null,null,null,null,null,null,null,null,null,null,null,null,null,null,null,null,null,null,null,null,null,null,null,null,null,null,null,null,null,null,null,null,null,null,null,null,null,null,null,null,null,null,null,18,null,null,null,null,null,null,null,0,0,1]
[22,null,null,null,null,null,null,null,null,null,null,null,null,null,null,null,null,null,null,null,null,null,null,null,null,null,null,null,null,null,null,null,null,null,null,null,null,null,null,null,null,null,null,null,null,null,null,null,null,null,null,null,null,null,null,null,null,null,null,null,null,null,null,null,null,null,null,null,null,null,null,null,null,null,null,null,null,null,19,null,null,null,null,null,null,null,0,0,1]
[23,null,null,null,null,null,null,null,null,null,null,null,null,null,null,null,null,null,null,null,null,null,null,null,null,null,null,null,null,null,null,null,null,null,null,null,null,null,null,null,null,null,null,null,null,null,null,null,null,null,null,null,null,null,null,null,null,null,null,null,null,null,null,null,null,null,null,null,null,null,null,null,null,null,null,null,null,null,20,null,null,null,null,null,null,null,{"$f":"IF(COUNT(CB27:CH27)>0,1,0)","v":0},0,1]
[24,null,null,null,null,null,null,null,null,null,null,null,null,null,null,null,null,null,null,null,null,null,null,null,null,null,null,null,null,null,null,null,null,null,null,null,null,null,null,null,null,null,null,null,null,null,null,null,null,null,null,null,null,null,null,null,null,null,null,null,null,null,null,null,null,null,null,null,null,null,null,null,null,null,null,null,null,null,21,null,null,null,null,null,null,null,0,0,1]
[25,null,null,null,null,null,null,null,null,null,null,null,null,null,null,null,null,null,null,null,null,null,null,null,null,null,null,null,null,null,null,null,null,null,null,null,null,null,null,null,null,null,null,null,null,null,null,null,null,null,null,null,null,null,null,null,null,null,null,null,null,null,null,null,null,null,null,null,null,null,null,null,null,null,null,null,null,null,22,null,null,null,null,null,null,null,0,0,1]
[26,null,null,null,null,null,null,null,null,null,null,null,null,null,null,null,null,null,null,null,null,null,null,null,null,null,null,null,null,null,null,null,null,null,null,null,null,null,null,null,null,null,null,null,null,null,null,null,null,null,null,null,null,null,null,null,null,null,null,null,null,null,null,null,null,null,null,null,null,null,null,null,null,null,null,null,null,null,23,null,null,null,null,null,null,null,0,0,1]
[27,null,null,null,null,null,null,null,null,null,null,null,null,null,null,null,null,null,null,null,null,null,null,null,null,null,null,null,null,null,null,null,null,null,null,null,null,null,null,null,null,null,null,null,null,null,null,null,null,null,null,null,null,null,null,null,null,null,null,null,null,null,null,null,null,null,null,null,null,null,null,null,null,null,null,null,null,null,24,null,null,null,null,null,null,null,0,0,1]
[28,null,null,null,null,null,null,null,null,null,null,null,null,null,null,null,null,null,null,null,null,null,null,null,null,null,null,null,null,null,null,null,null,null,null,null,null,null,null,null,null,null,null,null,null,null,null,null,null,null,null,null,null,null,null,null,null,null,null,null,null,null,null,null,null,null,null,null,null,null,null,null,null,null,null,null,null,null,25,null,null,null,null,null,null,null,0,0,1]
[29,null,null,null,null,null,null,null,null,null,null,null,null,null,null,null,null,null,null,null,null,null,null,null,null,null,null,null,null,null,null,null,null,null,null,null,null,null,null,null,null,null,null,null,null,null,null,null,null,null,null,null,null,null,null,null,null,null,null,null,null,null,null,null,null,null,null,null,null,null,null,null,null,null,null,null,null,null,26,null,null,null,null,null,null,null,0,0,1]
[30,null,null,null,null,null,null,null,null,null,null,null,null,null,null,null,null,null,null,null,null,null,null,null,null,null,null,null,null,null,null,null,null,null,null,null,null,null,null,null,null,null,null,null,null,null,null,null,null,null,null,null,null,null,null,null,null,null,null,null,null,null,null,null,null,null,null,null,null,null,null,null,null,null,null,null,null,null,27,null,null,null,null,null,null,null,0,0,1]
[31,null,null,null,null,null,null,null,null,null,null,null,null,null,null,null,null,null,null,null,null,null,null,null,null,null,null,null,null,null,null,null,null,null,null,null,null,null,null,null,null,null,null,null,null,null,null,null,null,null,null,null,null,null,null,null,null,null,null,null,null,null,null,null,null,null,null,null,null,null,null,null,null,null,null,null,null,null,28,null,null,null,null,null,null,null,0,0,1]
[32,null,null,null,null,null,null,null,null,null,null,null,null,null,null,null,null,null,null,null,null,null,null,null,null,null,null,null,null,null,null,null,null,null,null,null,null,null,null,null,null,null,null,null,null,null,null,null,null,null,null,null,null,null,null,null,null,null,null,null,null,null,null,null,null,null,null,null,null,null,null,null,null,null,null,null,null,null,29,null,null,null,null,null,null,null,0,0,1]
[33,null,null,null,null,null,null,null,null,null,null,null,null,null,null,null,null,null,null,null,null,null,null,null,null,null,null,null,null,null,null,null,null,null,null,null,null,null,null,null,null,null,null,null,null,null,null,null,null,null,null,null,null,null,null,null,null,null,null,null,null,null,null,null,null,null,null,null,null,null,null,null,null,null,null,null,null,null,30,null,null,null,null,null,null,null,0,0,1]
[34,null,null,null,null,null,null,null,null,null,null,null,null,null,null,null,null,null,null,null,null,null,null,null,null,null,null,null,null,null,null,null,null,null,null,null,null,null,null,null,null,null,null,null,null,null,null,null,null,null,null,null,null,null,null,null,null,null,null,null,null,null,null,null,null,null,null,null,null,null,null,null,null,null,null,null,null,null,31,null,null,null,null,null,null,null,0,0,1]
[35,null,null,null,null,null,null,null,null,null,null,null,null,null,null,null,null,null,null,null,null,null,null,null,null,null,null,null,null,null,null,null,null,null,null,null,null,null,null,null,null,null,null,null,null,null,null,null,null,null,null,null,null,null,null,null,null,null,null,null,null,null,null,null,null,null,null,null,null,null,null,null,null,null,null,null,null,null,32,null,null,null,null,null,null,null,0,0,1]
[36,null,null,null,null,null,null,null,null,null,null,null,null,null,null,null,null,null,null,null,null,null,null,null,null,null,null,null,null,null,null,null,null,null,null,null,null,null,null,null,null,null,null,null,null,null,null,null,null,null,null,null,null,null,null,null,null,null,null,null,null,null,null,null,null,null,null,null,null,null,null,null,null,null,null,null,null,null,33,null,null,null,null,null,null,null,0,0,1]
[37,null,null,null,null,null,null,null,null,null,null,null,null,null,null,null,null,null,null,null,null,null,null,null,null,null,null,null,null,null,null,null,null,null,null,null,null,null,null,null,null,null,null,null,null,null,null,null,null,null,null,null,null,null,null,null,null,null,null,null,null,null,null,null,null,null,null,null,null,null,null,null,null,null,null,null,null,null,34,null,null,null,null,null,null,null,0,0,1]
[38,null,null,null,null,null,null,null,null,null,null,null,null,null,null,null,null,null,null,null,null,null,null,null,null,null,null,null,null,null,null,null,null,null,null,null,null,null,null,null,null,null,null,null,null,null,null,null,null,null,null,null,null,null,null,null,null,null,null,null,null,null,null,null,null,null,null,null,null,null,null,null,null,null,null,null,null,null,35,null,null,null,null,null,null,null,0,0,1]
[39,null,null,null,null,null,null,null,null,null,null,null,null,null,null,null,null,null,null,null,null,null,null,null,null,null,null,null,null,null,null,null,null,null,null,null,null,null,null,null,null,null,null,null,null,null,null,null,null,null,null,null,null,null,null,null,null,null,null,null,null,null,null,null,null,null,null,null,null,null,null,null,null,null,null,null,null,null,36,null,null,null,null,null,null,null,0,0,1]
[40,null,null,null,null,null,null,null,null,null,null,null,null,null,null,null,null,null,null,null,null,null,null,null,null,null,null,null,null,null,null,null,null,null,null,null,null,null,null,null,null,null,null,null,null,null,null,null,null,null,null,null,null,null,null,null,null,null,null,null,null,null,null,null,null,null,null,null,null,null,null,null,null,null,null,null,null,null,37,null,null,null,null,null,null,null,0,0,1]
[41,null,null,null,null,null,null,null,null,null,null,null,null,null,null,null,null,null,null,null,null,null,null,null,null,null,null,null,null,null,null,null,null,null,null,null,null,null,null,null,null,null,null,null,null,null,null,null,null,null,null,null,null,null,null,null,null,null,null,null,null,null,null,null,null,null,null,null,null,null,null,null,null,null,null,null,null,null,38,null,null,null,null,null,null,null,{"$f":"IF(COUNT(CB45:CH45)>0,1,0)","v":0},{"$f":"IF(CI45=1,SUMPRODUCT($CB$5:$CH$5,CB45:CH45)+$CI$5,0)","v":0},{"$f":"IF(CJ45>5,5,IF(CJ45<1,1,ROUND(CJ45,0)))","v":1}]
[42,null,null,null,null,null,null,null,null,null,null,null,null,null,null,null,null,null,null,null,null,null,null,null,null,null,null,null,null,null,null,null,null,null,null,null,null,null,null,null,null,null,null,null,null,null,null,null,null,null,null,null,null,null,null,null,null,null,null,null,null,null,null,null,null,null,null,null,null,null,null,null,null,null,null,null,null,null,39,null,null,null,null,null,null,null,0,0,1]
[43,null,null,null,null,null,null,null,null,null,null,null,null,null,null,null,null,null,null,null,null,null,null,null,null,null,null,null,null,null,null,null,null,null,null,null,null,null,null,null,null,null,null,null,null,null,null,null,null,null,null,null,null,null,null,null,null,null,null,null,null,null,null,null,null,null,null,null,null,null,null,null,null,null,null,null,null,null,40,null,null,null,null,null,null,null,0,0,1]
[44,null,null,null,null,null,null,null,null,null,null,null,null,null,null,null,null,null,null,null,null,null,null,null,null,null,null,null,null,null,null,null,null,null,null,null,null,null,null,null,null,null,null,null,null,null,null,null,null,null,null,null,null,null,null,null,null,null,null,null,null,null,null,null,null,null,null,null,null,null,null,null,null,null,null,null,null,null,41,null,null,null,null,null,null,null,0,0,1]
[45,null,null,null,null,null,null,null,null,null,null,null,null,null,null,null,null,null,null,null,null,null,null,null,null,null,null,null,null,null,null,null,null,null,null,null,null,null,null,null,null,null,null,null,null,null,null,null,null,null,null,null,null,null,null,null,null,null,null,null,null,null,null,null,null,null,null,null,null,null,null,null,null,null,null,null,null,null,42,null,null,null,null,null,null,null,0,0,1]
[46,null,null,null,null,null,null,null,null,null,null,null,null,null,null,null,null,null,null,null,null,null,null,null,null,null,null,null,null,null,null,null,null,null,null,null,null,null,null,null,null,null,null,null,null,null,null,null,null,null,null,null,null,null,null,null,null,null,null,null,null,null,null,null,null,null,null,null,null,null,null,null,null,null,null,null,null,null,43,null,null,null,null,null,null,null,0,0,1]
[47,null,null,null,null,null,null,null,null,null,null,null,null,null,null,null,null,null,null,null,null,null,null,null,null,null,null,null,null,null,null,null,null,null,null,null,null,null,null,null,null,null,null,null,null,null,null,null,null,null,null,null,null,null,null,null,null,null,null,null,null,null,null,null,null,null,null,null,null,null,null,null,null,null,null,null,null,null,44,null,null,null,null,null,null,null,0,0,1]
[48,null,null,null,null,null,null,null,null,null,null,null,null,null,null,null,null,null,null,null,null,null,null,null,null,null,null,null,null,null,null,null,null,null,null,null,null,null,null,null,null,null,null,null,null,null,null,null,null,null,null,null,null,null,null,null,null,null,null,null,null,null,null,null,null,null,null,null,null,null,null,null,null,null,null,null,null,null,45,null,null,null,null,null,null,null,0,0,1]
[49,null,null,null,null,null,null,null,null,null,null,null,null,null,null,null,null,null,null,null,null,null,null,null,null,null,null,null,null,null,null,null,null,null,null,null,null,null,null,null,null,null,null,null,null,null,null,null,null,null,null,null,null,null,null,null,null,null,null,null,null,null,null,null,null,null,null,null,null,null,null,null,null,null,null,null,null,null,46,null,null,null,null,null,null,null,0,0,1]
[50,null,null,null,null,null,null,null,null,null,null,null,null,null,null,null,null,null,null,null,null,null,null,null,null,null,null,null,null,null,null,null,null,null,null,null,null,null,null,null,null,null,null,null,null,null,null,null,null,null,null,null,null,null,null,null,null,null,null,null,null,null,null,null,null,null,null,null,null,null,null,null,null,null,null,null,null,null,47,null,null,null,null,null,null,null,0,0,1]
[51,null,null,null,null,null,null,null,null,null,null,null,null,null,null,null,null,null,null,null,null,null,null,null,null,null,null,null,null,null,null,null,null,null,null,null,null,null,null,null,null,null,null,null,null,null,null,null,null,null,null,null,null,null,null,null,null,null,null,null,null,null,null,null,null,null,null,null,null,null,null,null,null,null,null,null,null,null,48,null,null,null,null,null,null,null,0,0,1]
[52,null,null,null,null,null,null,null,null,null,null,null,null,null,null,null,null,null,null,null,null,null,null,null,null,null,null,null,null,null,null,null,null,null,null,null,null,null,null,null,null,null,null,null,null,null,null,null,null,null,null,null,null,null,null,null,null,null,null,null,null,null,null,null,null,null,null,null,null,null,null,null,null,null,null,null,null,null,49,null,null,null,null,null,null,null,0,0,1]
[53,null,null,null,null,null,null,null,null,null,null,null,null,null,null,null,null,null,null,null,null,null,null,null,null,null,null,null,null,null,null,null,null,null,null,null,null,null,null,null,null,null,null,null,null,null,null,null,null,null,null,null,null,null,null,null,null,null,null,null,null,null,null,null,null,null,null,null,null,null,null,null,null,null,null,null,null,null,50,null,null,null,null,null,null,null,0,0,1]
[54,null,null,null,null,null,null,null,null,null,null,null,null,null,null,null,null,null,null,null,null,null,null,null,null,null,null,null,null,null,null,null,null,null,null,null,null,null,null,null,null,null,null,null,null,null,null,null,null,null,null,null,null,null,null,null,null,null,null,null,null,null,null,null,null,null,null,null,null,null,null,null,null,null,null,null,null,null,51,null,null,null,null,null,null,null,0,0,1]
[55,null,null,null,null,null,null,null,null,null,null,null,null,null,null,null,null,null,null,null,null,null,null,null,null,null,null,null,null,null,null,null,null,null,null,null,null,null,null,null,null,null,null,null,null,null,null,null,null,null,null,null,null,null,null,null,null,null,null,null,null,null,null,null,null,null,null,null,null,null,null,null,null,null,null,null,null,null,52,null,null,null,null,null,null,null,0,0,1]
[56,null,null,null,null,null,null,null,null,null,null,null,null,null,null,null,null,null,null,null,null,null,null,null,null,null,null,null,null,null,null,null,null,null,null,null,null,null,null,null,null,null,null,null,null,null,null,null,null,null,null,null,null,null,null,null,null,null,null,null,null,null,null,null,null,null,null,null,null,null,null,null,null,null,null,null,null,null,53,null,null,null,null,null,null,null,0,0,1]
[57,null,null,null,null,null,null,null,null,null,null,null,null,null,null,null,null,null,null,null,null,null,null,null,null,null,null,null,null,null,null,null,null,null,null,null,null,null,null,null,null,null,null,null,null,null,null,null,null,null,null,null,null,null,null,null,null,null,null,null,null,null,null,null,null,null,null,null,null,null,null,null,null,null,null,null,null,null,54,null,null,null,null,null,null,null,0,0,1]
[58,null,null,null,null,null,null,null,null,null,null,null,null,null,null,null,null,null,null,null,null,null,null,null,null,null,null,null,null,null,null,null,null,null,null,null,null,null,null,null,null,null,null,null,null,null,null,null,null,null,null,null,null,null,null,null,null,null,null,null,null,null,null,null,null,null,null,null,null,null,null,null,null,null,null,null,null,null,55,null,null,null,null,null,null,null,0,0,1]
[59,null,null,null,null,null,null,null,null,null,null,null,null,null,null,null,null,null,null,null,null,null,null,null,null,null,null,null,null,null,null,null,null,null,null,null,null,null,null,null,null,null,null,null,null,null,null,null,null,null,null,null,null,null,null,null,null,null,null,null,null,null,null,null,null,null,null,null,null,null,null,null,null,null,null,null,null,null,56,null,null,null,null,null,null,null,0,0,1]
[60,null,null,null,null,null,null,null,null,null,null,null,null,null,null,null,null,null,null,null,null,null,null,null,null,null,null,null,null,null,null,null,null,null,null,null,null,null,null,null,null,null,null,null,null,null,null,null,null,null,null,null,null,null,null,null,null,null,null,null,null,null,null,null,null,null,null,null,null,null,null,null,null,null,null,null,null,null,57,null,null,null,null,null,null,null,0,0,1]
[61,null,null,null,null,null,null,null,null,null,null,null,null,null,null,null,null,null,null,null,null,null,null,null,null,null,null,null,null,null,null,null,null,null,null,null,null,null,null,null,null,null,null,null,null,null,null,null,null,null,null,null,null,null,null,null,null,null,null,null,null,null,null,null,null,null,null,null,null,null,null,null,null,null,null,null,null,null,58,null,null,null,null,null,null,null,0,0,1]
[62,null,null,null,null,null,null,null,null,null,null,null,null,null,null,null,null,null,null,null,null,null,null,null,null,null,null,null,null,null,null,null,null,null,null,null,null,null,null,null,null,null,null,null,null,null,null,null,null,null,null,null,null,null,null,null,null,null,null,null,null,null,null,null,null,null,null,null,null,null,null,null,null,null,null,null,null,null,59,null,null,null,null,null,null,null,0,0,1]
[63,null,null,null,null,null,null,null,null,null,null,null,null,null,null,null,null,null,null,null,null,null,null,null,null,null,null,null,null,null,null,null,null,null,null,null,null,null,null,null,null,null,null,null,null,null,null,null,null,null,null,null,null,null,null,null,null,null,null,null,null,null,null,null,null,null,null,null,null,null,null,null,null,null,null,null,null,null,60,null,null,null,null,null,null,null,0,0,1]
[64]
[65]
[66]
[67]
[68]
[69]
[70]
[71]
[72]
[73]
[74]
[75]
[76]
[77]
[78]
[79]
[80]
[81]
[82]
[83]
[84]
[85]
[86]
[87]
[88]
[89]
[90]
[91]
[92]
[93]
[94]
[95]
[96]
[97]
[98]
[99]
[100]
[101]
[102]
[103]
[104]
[105]
[106]
[107]
[108]
[109]
[110]
[111]
[112]
[113]
[114]
[115]
[116]
[117]
[118]
[119]
[120]
[121]
[122]
[123]
[124]
[125]
[126]
[127]
[128]
[129]
[130]
[131]
[132]
[133]
[134]
[135]
[136]
[137]
[138]
[139]
[140]
[141]
[142]
[143]
[144]
[145]
[146]
[147]
[148]
[149]
[150]
[151]
[152]
[153]
[154]
[155]
[156]
[157]
[158]
[159]
[160]
[161]
[162]
[163]
[164]
[165]
[166]
[167]
[168]
[169]
[170]
[171]
[172]
[173]
[174]
[175]
[176]
[177]
[178]
[179]
[180]
[181]
[182]
[183]
[184]
[185]
[186]
[187]
[188]
[189]
[190]
[191]
[192]
[193]
[194]
[195]
[196]
[197]
[198]
[199]
[200]
[201]
[202]
[203]
[204]
[205]
[206]
[207]
[208]
[209]
[210]
[211]
[212]
[213]
[214]
[215]
[216]
[217]

{"sheet":"環境調査_記録用紙","index":6,"n_rows":24,"n_cols":25,"rows_kept":24,"cut":false,"hidden":false,"merged":[[1,19,3,19],[1,20,3,20],[1,21,2,24],[1,3,3,3],[1,4,2,6],[1,7,2,15],[1,16,3,16],[1,17,3,17],[1,18,3,18]]}
["環境調査 記録用紙"]
[null,null,null,"水路幅（cm）","水深（cm）",null,null,"流速（cm/秒） ",null,null,null,null,null,null,null,null,"陸地（cm）","沈水植物の幅（cm）","抽水植物の幅（cm）","垂下植物の幅（cm）","リタ―\n（ｃｍ）","河床材料％"]
[]
[null,"調査区間名",null,null,"左","中","右","左\n1回目","2回目","3回目","中\n1回目","2回目","3回目","右\n1回目","2回目","3回目",null,null,null,null,null,"石・礫","砂","泥","ｺﾝｸﾘｰﾄ"]
[1]
[2]
[3]
[4]
[5]
[6]
[7]
[8]
[9]
[10]
[11]
[12]
[13]
[14]
[15]
[16]
[17]
[18]
[19]
[20]

{"sheet":"魚類調査_記録用紙","index":7,"n_rows":24,"n_cols":22,"rows_kept":24,"cut":false,"hidden":false,"merged":[]}
["魚類調査_記録用紙"]
[null,null,1,2,3,4,5,6,7,8,9,10,11,12,13,14,15,16,17,18,19,20]
[null,"種名"]
[null,"調査区間名"]
[1]
[2]
[3]
[4]
[5]
[6]
[7]
[8]
[9]
[10]
[11]
[12]
[13]
[14]
[15]
[16]
[17]
[18]
[19]
[20]

{"sheet":"練習用","index":8,"n_rows":54,"n_cols":39,"rows_kept":54,"cut":false,"hidden":false,"merged":[[8,26,15,26],[1,20,3,20],[1,21,2,24],[1,3,3,3],[1,4,2,6],[1,7,2,15],[1,16,3,16],[1,17,3,17],[1,18,3,18],[1,19,3,19]]}
["環境データ　※A5～Y54セルをコピーし、環境シートのA5～Y54セルに貼り付けて、ご使用ください。",null,null,null,null,null,null,null,null,null,null,null,null,null,null,null,null,null,null,null,null,null,null,null,null,null,null,null,"魚類データ　※AC2～AM14セルをコピーし、魚類シートのA2～K14セルに貼り付けて、ご使用ください。"]
[null,null,null,"水路幅（cm）","水深（cm）",null,null,"流速（cm/秒） ",null,null,null,null,null,null,null,null,"陸地（cm）","沈水植物の幅（cm）","抽水植物の幅（cm）","垂下植物の幅（cm）","リタ―\n（ｃｍ）","河床材料％",null,null,null,null,null,null,null,null,null,"種1","種2","種3","種4","種5","種6","種7","種8"]
[null,"調査区間名",null,null,null,null,null,null,null,null,null,null,null,null,null,null,null,null,null,null,null,null,null,null,null,null,null,null,null,null,"種名→","アブラハヤ","ギバチ","ドジョウ","モツゴ","アカヒレタビラ","オイカワ","シマドジョウ","ヨシノボリ類"]
[null,null,null,null,"左","中","右","左\n1回目","2回目","3回目","中\n1回目","2回目","3回目","右\n1回目","2回目","3回目",null,null,null,null,null,"石・礫","砂","泥","ｺﾝｸﾘｰﾄ",null,null,null,null,null,"解析対象→",true,true,true,true,true,true,true,true]
[1,"区間1",1,400,22,20,16,null,null,null,45,46,null,null,null,null,100,0,0,20,0,90,10,0,0,null,null,null,1,"区間1",null,25,42,37,31,21,6,1,0]
[2,null,2,400,27,33,34,null,null,null,38,39,null,null,null,null,0,0,0,130,0,70,30,0,0,null,null,null,2,"区間2",null,34,38,22,16,4,13,7,2]
[3,null,3,400,24,26,40,null,null,null,40,41,null,null,null,null,0,0,0,200,0,60,40,0,0,null,null,null,3,"区間3",null,11,15,26,6,3,0,5,4]
[4,null,4,400,29,32,40,null,null,null,34,35,null,null,null,null,0,10,0,170,0,60,40,0,0,null,null,null,4,"区間4",null,58,30,5,49,20,10,3,1]
[5,null,5,400,40,35,37,null,null,null,36,37,null,null,null,null,0,10,0,140,0,70,30,0,0,"←","調査区間が連続する場合には、区間の上流端と次区間の下流端には同じデータを入力します。",null,5,"区間5",null,27,21,9,3,2,0,1,4]
[6,"区間2",1,400,40,35,37,null,null,null,36,37,null,null,null,null,0,10,0,140,0,70,30,0,0,"←",null,null,6,"区間6",null,9,15,4,2,1,2,0,0]
[7,null,2,400,34,42,40,null,null,null,38,39,null,null,null,null,0,20,0,20,0,30,0,70,0,null,null,null,7,"区間7",null,3,0,0,0,1,1,0,0]
[8,null,3,400,30,38,43,null,null,null,36,37,null,null,null,null,0,10,0,80,0,30,0,70,0,null,null,null,8,"区間8",null,16,4,8,4,2,1,1,0]
[9,null,4,400,33,38,37,null,null,null,35,36,null,null,null,null,50,0,0,100,0,40,30,30,0,null,null,null,9,"区間9",null,9,9,44,0,0,1,1,1]
[10,null,5,400,32,34,39,null,null,null,42,43,null,null,null,null,40,0,0,140,0,40,20,40,0,null,null,null,10,"区間10",null,47,3,9,5,0,0,0,0]
[11,"区間3",1,400,32,34,39,null,null,null,42,43,null,null,null,null,40,0,0,140,0,40,20,40,0]
[12,null,2,400,40,38,40,null,null,null,30,31,null,null,null,null,50,10,0,80,0,40,0,60,0]
[13,null,3,400,35,37,40,null,null,null,28,29,null,null,null,null,60,20,0,120,0,40,0,60,0]
[14,null,4,400,28,33,37,null,null,null,36,37,null,null,null,null,0,5,30,100,0,50,20,30,0]
[15,null,5,400,29,30,33,null,null,null,31,32,null,null,null,null,60,0,0,130,0,70,30,0,0]
[16,"区間4",1,400,29,30,33,null,null,null,31,32,null,null,null,null,60,0,0,130,0,70,30,0,0]
[17,null,2,400,20,23,27,null,null,null,23,24,null,null,null,null,100,0,0,30,0,80,20,0,0]
[18,null,3,400,33,30,40,null,null,null,25,26,null,null,null,null,0,20,0,90,0,70,30,0,0]
[19,null,4,400,23,27,30,null,null,null,20,21,null,null,null,null,0,20,0,80,0,70,30,0,0]
[20,null,5,400,19,38,36,null,null,null,27,28,null,null,null,null,0,0,0,80,0,80,20,0,0]
[21,"区間5",1,400,19,38,36,null,null,null,27,28,null,null,null,null,0,0,0,80,0,80,20,0,0]
[22,null,2,400,29,25,31,null,null,null,39,40,null,null,null,null,0,30,0,160,0,70,20,10,0]
[23,null,3,400,21,25,20,null,null,null,38,39,null,null,null,null,0,0,0,230,0,70,10,20,0]
[24,null,4,400,30,26,26,null,null,null,45,46,null,null,null,null,0,10,0,300,0,70,20,10,0]
[25,null,5,400,27,27,24,null,null,null,42,43,null,null,null,null,20,0,0,290,0,70,10,20,0]
[26,"区間6",1,400,27,27,24,null,null,null,42,43,null,null,null,null,20,0,0,290,0,70,10,20,0]
[27,null,2,400,18,24,30,null,null,null,39,40,null,null,null,null,0,0,0,130,0,60,10,30,0]
[28,null,3,400,24,28,26,null,null,null,43,44,null,null,null,null,40,0,0,120,0,60,10,30,0]
[29,null,4,400,26,22,25,null,null,null,58,59,null,null,null,null,100,0,0,30,0,60,10,30,0]
[30,null,5,400,27,20,20,null,null,null,66,67,null,null,null,null,50,0,0,130,0,40,10,50,0]
[31,"区間7",1,400,27,20,20,null,null,null,66,67,null,null,null,null,50,0,0,130,0,40,10,50,0]
[32,null,2,400,20,22,13,null,null,null,95,96,null,null,null,null,0,0,0,280,0,60,20,20,0]
[33,null,3,400,23,23,22,null,null,null,69,70,null,null,null,null,0,0,0,270,0,50,20,30,0]
[34,null,4,400,26,30,32,null,null,null,48,49,null,null,null,null,200,0,0,40,0,30,0,70,0]
[35,null,5,400,23,27,26,null,null,null,89,90,null,null,null,null,200,0,0,100,0,40,10,50,0]
[36,"区間8",1,400,23,27,26,null,null,null,89,90,null,null,null,null,200,0,0,100,0,40,10,50,0]
[37,null,2,400,24,24,20,null,null,null,77,78,null,null,null,null,160,10,0,60,0,60,0,40,0]
[38,null,3,400,25,27,25,null,null,null,76,77,null,null,null,null,90,0,0,140,0,80,0,20,0]
[39,null,4,400,22,25,27,null,null,null,83,84,null,null,null,null,80,0,0,110,0,50,20,30,0]
[40,null,5,400,26,22,25,null,null,null,85,86,null,null,null,null,0,0,180,90,0,60,0,40,0]
[41,"区間9",1,400,26,22,25,null,null,null,85,86,null,null,null,null,0,0,180,90,0,60,0,40,0]
[42,null,2,400,27,26,20,null,null,null,95,96,null,null,null,null,100,0,0,150,0,40,30,30,0]
[43,null,3,400,30,30,30,null,null,null,69,70,null,null,null,null,230,0,40,70,0,70,0,30,0]
[44,null,4,400,29,30,31,null,null,null,38,39,null,null,null,null,0,20,0,40,0,0,0,50,0]
[45,null,5,400,32,31,38,null,null,null,24,25,null,null,null,null,0,10,0,120,0,40,30,30,0]
[46,"区間10",1,400,32,31,38,null,null,null,24,25,null,null,null,null,0,10,0,120,0,40,30,30,0]
[47,null,2,400,35,33,34,null,null,null,35,36,null,null,null,null,0,0,0,140,0,60,40,0,0]
[48,null,3,400,40,45,43,null,null,null,50,51,null,null,null,null,0,0,0,80,0,40,30,30,0]
[49,null,4,400,26,23,24,null,null,null,42,43,null,null,null,null,0,20,0,0,0,80,10,10,0]
[50,null,5,400,30,28,32,null,null,null,24,25,null,null,null,null,0,0,0,0,0,90,0,10,0]

{"sheet":"環境調査_記録用紙 (記入例)","index":9,"n_rows":24,"n_cols":25,"rows_kept":24,"cut":false,"hidden":false,"merged":[[1,19,3,19],[1,20,3,20],[1,21,2,24],[1,3,3,3],[1,4,2,6],[1,7,2,15],[1,16,3,16],[1,17,3,17],[1,18,3,18]]}
["環境調査 記録用紙"]
[null,null,null,"水路幅（cm）","水深（cm）",null,null,"流速（cm/秒） ",null,null,null,null,null,null,null,null,"陸地（cm）","沈水植物の幅（cm）","抽水植物の幅（cm）","垂下植物の幅（cm）","リタ―\n（ｃｍ）","河床材料％"]
[]
[null,"調査区間名",null,null,"左","中","右","左\n1回目","2回目","3回目","中\n1回目","2回目","3回目","右\n1回目","2回目","3回目",null,null,null,null,null,"石・礫","砂","泥","ｺﾝｸﾘｰﾄ"]
[1,"区間1",1,560,17,25,30,null,null,null,20.1207243460765,23.529411764705884,null,null,null,null,200,0,0,30,0,75,25,0,0]
[2,null,2,520,24,28,32,null,null,null,21.645021645021643,19.607843137254903,null,null,null,null,220,0,0,30,0,80,20,0,0]
[3,null,3,470,28,25,25,null,null,null,29.585798816568047,25.641025641025642,null,null,null,null,150,0,0,150,0,80,20,0,0]
[4,null,4,450,25,33,32,null,null,null,19.880715705765407,17.391304347826086,null,null,null,null,0,5,0,160,0,80,20,0,0]
[5,"区間2",1,400,24,31,34,null,null,null,19.157088122605366,23.529411764705884,null,null,null,null,0,0,0,100,0,80,20,0,0]
[6,null,2,400,25,30,23,null,null,null,15.037593984962406,15.015015015015015,null,null,null,null,0,0,0,0,0,80,20,0,0]
[7,null,3,400,30,22,26,null,null,null,14.619883040935672,15.313935681470138,null,null,null,null,0,0,0,60,0,90,10,0,0]
[8,null,4,400,27,30,27,null,null,null,27.100271002710027,23.980815347721823,null,null,null,null,0,0,60,90,0,60,0,40,0]
[9,"区間3",1,400,24,27,24,null,null,null,19.880715705765407,25,null,null,null,null,0,0,90,90,0,60,0,40,0]
[10,null,2,400,24,30,37,null,null,null,21.598272138228943,20.66115702479339,null,null,null,null,0,0,90,80,0,60,0,40,0]
[11,null,3,400,25,27,41,null,null,null,23.041474654377883,20.920502092050206,null,null,null,null,0,0,0,140,0,70,0,30,0]
[12,null,4,400,32,34,21,null,null,null,20.242914979757085,26.666666666666668,null,null,null,null,0,0,80,120,0,80,0,20,0]
[13,"区間4",1,400,28,29,31,null,null,null,45.662100456621005,41.493775933609953,null,null,null,null,90,0,10,130,0,50,0,50,0]
[14,null,2,400,25,24,27,null,null,null,40,53.475935828876999,null,null,null,null,0,0,270,0,0,30,0,70,0]
[15,null,3,400,27,31,22,null,null,null,42.73504273504274,32.051282051282051,null,null,null,null,140,0,100,80,0,40,0,60,0]
[16,null,4,400,23,26,22,null,null,null,46.511627906976749,43.290043290043286,null,null,null,null,60,0,0,120,0,50,0,50,0]
[17,"区間5",1,400,13,23,22,null,null,null,34.013605442176875,51.813471502590673,null,null,null,null,0,0,130,140,0,60,0,40,0]
[18,null,2,400,27,24,26,null,null,null,36.363636363636367,23.201856148491881,null,null,null,null,0,0,90,0,0,70,0,30,0]
[19,null,3,400,30,32,27,null,null,null,46.511627906976749,39.525691699604749,null,null,null,null,120,0,200,0,0,70,0,30,0]
[20,null,4,400,20,31,27,null,null,null,60.24096385542169,49.26108374384237,null,null,null,null,190,0,80,0,0,70,0,30,0]

{"sheet":"魚類調査_記録用紙 (記入例)","index":10,"n_rows":24,"n_cols":22,"rows_kept":24,"cut":false,"hidden":false,"merged":[]}
["魚類調査_記録用紙"]
[null,null,1,2,3,4,5,6,7,8,9,10,11,12,13,14,15,16,17,18,19,20]
[null,"種名","アブラハヤ","ギバチ","ドジョウ","モツゴ","アカヒレタビラ","タイリクバラタナゴ","シマドジョウ","ヨシノボリ類","オイカワ","ウグイ","ギンブナ"]
[null,"調査区間名"]
[1,"区間1",82,4,6,3,0,0,4,5,2,0,1]
[2,"区間2",25,42,37,31,21,6,1,0,0,0,0]
[3,"区間3",34,38,22,16,4,13,7,2,0,0,0]
[4,"区間4",11,15,26,6,3,0,5,4,0,0,0]
[5,"区間5",58,30,5,49,20,10,3,1,0,0,0]
[6,"区間6",27,21,9,3,2,0,1,4,0,0,0]
[7,"区間7",9,15,4,2,1,2,0,0,0,0,0]
[8,"区間8",3,0,0,0,1,1,0,0,0,0,0]
[9,"区間9",16,4,8,4,2,1,1,0,0,0,0]
[10,"区間10",9,9,44,0,0,1,1,1,0,0,0]
[11]
[12]
[13]
[14]
[15]
[16]
[17]
[18]
[19]
[20]